Department family,Entity,Date,Expense type,Expense area,Supplier,Transaction number,Amount
Department of Health,Leicestershire Partnership NHS Trust,03/01/23,Rent,County Hall,LEIC COUNTY COUNCIL,6293761,34488.50
Department of Health,Leicestershire Partnership NHS Trust,03/01/23,FP10'S,Adult City Drugs,NHS BUS SERVICES AUTHORITY,1000075772,33465.69
Department of Health,Leicestershire Partnership NHS Trust,03/01/23,FP10'S,Adult County Drugs,NHS BUS SERVICES AUTHORITY,1000075772,28037.62
Department of Health,Leicestershire Partnership NHS Trust,03/01/23,FP10'S,CAMHS Outpatients,NHS BUS SERVICES AUTHORITY,1000075772,13584.57
Department of Health,Leicestershire Partnership NHS Trust,03/01/23,FP10'S,Community Paediatrics,NHS BUS SERVICES AUTHORITY,1000075772,4039.63
Department of Health,Leicestershire Partnership NHS Trust,03/01/23,FP10'S,Dementia Related Drugs and Investigations,NHS BUS SERVICES AUTHORITY,1000075772,6032.20
Department of Health,Leicestershire Partnership NHS Trust,03/01/23,FP10'S,Eating Disorders Outpatient Service,NHS BUS SERVICES AUTHORITY,1000075772,1181.04
Department of Health,Leicestershire Partnership NHS Trust,03/01/23,FP10'S,Forensic Services - Community,NHS BUS SERVICES AUTHORITY,1000075772,150.58
Department of Health,Leicestershire Partnership NHS Trust,03/01/23,FP10'S,Mental Health Liaison Team,NHS BUS SERVICES AUTHORITY,1000075772,78.34
Department of Health,Leicestershire Partnership NHS Trust,03/01/23,FP10'S,PIER Team - Early Intervention Services,NHS BUS SERVICES AUTHORITY,1000075772,18409.28
Department of Health,Leicestershire Partnership NHS Trust,03/01/23,FP10'S,Snr Med Staff (Inc Med Reps),NHS BUS SERVICES AUTHORITY,1000075772,7957.22
Department of Health,Leicestershire Partnership NHS Trust,03/01/23,Rent,"OSL House (P54, LPT)",CABOT TRUSTEES LTD,071A,41700.00
Department of Health,Leicestershire Partnership NHS Trust,04/01/23,Rent,Work Force Transformation,NSPCC,120119,28752.40
Department of Health,Leicestershire Partnership NHS Trust,04/01/23,Medical Equipment Repairs / Maintenance,Medical Devices Maintenance (LPT),AVENSYS UK LTD,30946,25512.93
Department of Health,Leicestershire Partnership NHS Trust,04/01/23,WIP Project Not in BS - Buildings excl Dwellings,Work in Progress,TILBURY DOUGLAS CONSTRUCTION LTD,22120386,266287.56
Department of Health,Leicestershire Partnership NHS Trust,04/01/23,WIP Project Not in BS - Buildings excl Dwellings,Work in Progress,TILBURY DOUGLAS CONSTRUCTION LTD,22120385,139097.54
Department of Health,Leicestershire Partnership NHS Trust,04/01/23,Unitary Payment,"The Agnes Unit (AKA Assessment and Treatment Centre) (P85, LPT)",ARDEN PARTNERSHIP (LEICESTER),SI0113,131282.77
Department of Health,Leicestershire Partnership NHS Trust,04/01/23,Nurse - Band 6 -Agency,AMH - Central Access Point,HCL WORKFORCE SOLUTIONS,HWSI0001507,4564.41
Department of Health,Leicestershire Partnership NHS Trust,04/01/23,Nurse - Band 6 -Agency,Adult City Central CMHT - St Peters,HCL WORKFORCE SOLUTIONS,HWSI0001507,274.82
Department of Health,Leicestershire Partnership NHS Trust,04/01/23,Nurse - Band 6 -Agency,Adult City East CMHT - Merlyn Vaz,HCL WORKFORCE SOLUTIONS,HWSI0001507,2683.59
Department of Health,Leicestershire Partnership NHS Trust,04/01/23,Nurse - Band 6 -Agency,Adult County Charnwood CMHT - Loughborough Base,HCL WORKFORCE SOLUTIONS,HWSI0001507,855.97
Department of Health,Leicestershire Partnership NHS Trust,04/01/23,NURSE - BAND 5 - AGENCY,Bosworth Ward - Bradgate Unit,HCL WORKFORCE SOLUTIONS,HWSI0001507,669.81
Department of Health,Leicestershire Partnership NHS Trust,04/01/23,Nurse - Band 6 -Agency,Crisis Resolution,HCL WORKFORCE SOLUTIONS,HWSI0001507,10326.03
Department of Health,Leicestershire Partnership NHS Trust,04/01/23,Nurse - Band 6 -Agency,South Leicestershire CMHT MHSOP,HCL WORKFORCE SOLUTIONS,HWSI0001507,1354.88
Department of Health,Leicestershire Partnership NHS Trust,04/01/23,NURSE - BAND 5 - AGENCY,Watermead Ward (Bradgate Unit),HCL WORKFORCE SOLUTIONS,HWSI0001507,1159.59
Department of Health,Leicestershire Partnership NHS Trust,04/01/23,Nurse - Band 6 -Agency,AMH - Central Access Point,HCL NURSING,HNSI0001215,2028.00
Department of Health,Leicestershire Partnership NHS Trust,04/01/23,Nurse - Band 7 - Agency,Adult County- East Leicester CMHT,HCL NURSING,HNSI0001215,1365.26
Department of Health,Leicestershire Partnership NHS Trust,04/01/23,NURSE - BAND 2 - AGENCY,Agnes Unit,HCL NURSING,HNSI0001215,30152.89
Department of Health,Leicestershire Partnership NHS Trust,04/01/23,NURSE - BAND 5 - AGENCY,Agnes Unit,HCL NURSING,HNSI0001215,19709.28
Department of Health,Leicestershire Partnership NHS Trust,04/01/23,NURSE - BAND 2 - AGENCY,Ashby Ward (Bradgate Unit),HCL NURSING,HNSI0001215,7346.73
Department of Health,Leicestershire Partnership NHS Trust,04/01/23,NURSE - BAND 5 - AGENCY,Ashby Ward (Bradgate Unit),HCL NURSING,HNSI0001215,10104.18
Department of Health,Leicestershire Partnership NHS Trust,04/01/23,NURSE - BAND 2 - AGENCY,Beaumont Ward - Bradgate Unit,HCL NURSING,HNSI0001215,2667.15
Department of Health,Leicestershire Partnership NHS Trust,04/01/23,NURSE - BAND 5 - AGENCY,Beaumont Ward - Bradgate Unit,HCL NURSING,HNSI0001215,12576.49
Department of Health,Leicestershire Partnership NHS Trust,04/01/23,NURSE - BAND 2 - AGENCY,Belvoir Psychiatric Intensive Care Unit,HCL NURSING,HNSI0001215,3275.05
Department of Health,Leicestershire Partnership NHS Trust,04/01/23,NURSE - BAND 5 - AGENCY,Belvoir Psychiatric Intensive Care Unit,HCL NURSING,HNSI0001215,5732.70
Department of Health,Leicestershire Partnership NHS Trust,04/01/23,NURSE - BAND 2 - AGENCY,Bosworth Ward - Bradgate Unit,HCL NURSING,HNSI0001215,1701.73
Department of Health,Leicestershire Partnership NHS Trust,04/01/23,NURSE - BAND 5 - AGENCY,Bosworth Ward - Bradgate Unit,HCL NURSING,HNSI0001215,3759.30
Department of Health,Leicestershire Partnership NHS Trust,04/01/23,NURSE - BAND 2 - AGENCY,Cedar (Willows),HCL NURSING,HNSI0001215,3150.05
Department of Health,Leicestershire Partnership NHS Trust,04/01/23,NURSE - BAND 5 - AGENCY,Cedar (Willows),HCL NURSING,HNSI0001215,2637.38
Department of Health,Leicestershire Partnership NHS Trust,04/01/23,Nurse - Band 6 -Agency,City West CMHT MHSOP,HCL NURSING,HNSI0001215,2146.50
Department of Health,Leicestershire Partnership NHS Trust,04/01/23,NURSE - BAND 2 - AGENCY,Coleman Ward,HCL NURSING,HNSI0001215,15263.73
Department of Health,Leicestershire Partnership NHS Trust,04/01/23,NURSE - BAND 5 - AGENCY,Coleman Ward,HCL NURSING,HNSI0001215,5877.46
Department of Health,Leicestershire Partnership NHS Trust,04/01/23,NURSE - BAND 5 - AGENCY,Crisis Resolution,HCL NURSING,HNSI0001215,453.04
Department of Health,Leicestershire Partnership NHS Trust,04/01/23,NURSE - BAND 2 - AGENCY,Griffin Ward (HPC),HCL NURSING,HNSI0001215,8131.18
Department of Health,Leicestershire Partnership NHS Trust,04/01/23,NURSE - BAND 5 - AGENCY,Griffin Ward (HPC),HCL NURSING,HNSI0001215,9154.18
Department of Health,Leicestershire Partnership NHS Trust,04/01/23,NURSE - BAND 2 - AGENCY,Gwendolen Ward,HCL NURSING,HNSI0001215,7678.40
Department of Health,Leicestershire Partnership NHS Trust,04/01/23,NURSE - BAND 5 - AGENCY,Gwendolen Ward,HCL NURSING,HNSI0001215,2759.98
Department of Health,Leicestershire Partnership NHS Trust,04/01/23,NURSE - BAND 2 - AGENCY,Heather Ward,HCL NURSING,HNSI0001215,8615.30
Department of Health,Leicestershire Partnership NHS Trust,04/01/23,NURSE - BAND 5 - AGENCY,Heather Ward,HCL NURSING,HNSI0001215,7278.25
Department of Health,Leicestershire Partnership NHS Trust,04/01/23,NURSE - BAND 2 - AGENCY,Kirby Ward,HCL NURSING,HNSI0001215,3439.88
Department of Health,Leicestershire Partnership NHS Trust,04/01/23,NURSE - BAND 5 - AGENCY,Kirby Ward,HCL NURSING,HNSI0001215,1776.81
Department of Health,Leicestershire Partnership NHS Trust,04/01/23,NURSE - BAND 2 - AGENCY,Maple Ward,HCL NURSING,HNSI0001215,2299.35
Department of Health,Leicestershire Partnership NHS Trust,04/01/23,NURSE - BAND 5 - AGENCY,Maple Ward,HCL NURSING,HNSI0001215,1581.14
Department of Health,Leicestershire Partnership NHS Trust,04/01/23,Nurse - Band 6 -Agency,Mental Health Liaison Team,HCL NURSING,HNSI0001215,1859.93
Department of Health,Leicestershire Partnership NHS Trust,04/01/23,NURSE - BAND 2 - AGENCY,Mill Lodge,HCL NURSING,HNSI0001215,2765.99
Department of Health,Leicestershire Partnership NHS Trust,04/01/23,NURSE - BAND 5 - AGENCY,Mill Lodge,HCL NURSING,HNSI0001215,1565.55
Department of Health,Leicestershire Partnership NHS Trust,04/01/23,NURSE - BAND 2 - AGENCY,Phoenix Ward (HPC),HCL NURSING,HNSI0001215,1893.67
Department of Health,Leicestershire Partnership NHS Trust,04/01/23,NURSE - BAND 5 - AGENCY,Phoenix Ward (HPC),HCL NURSING,HNSI0001215,3534.01
Department of Health,Leicestershire Partnership NHS Trust,04/01/23,NURSE - BAND 2 - AGENCY,Place Of Safety Assessment Unit,HCL NURSING,HNSI0001215,1409.51
Department of Health,Leicestershire Partnership NHS Trust,04/01/23,NURSE - BAND 5 - AGENCY,Place Of Safety Assessment Unit,HCL NURSING,HNSI0001215,2172.70
Department of Health,Leicestershire Partnership NHS Trust,04/01/23,NURSE - BAND 2 - AGENCY,Stewart House,HCL NURSING,HNSI0001215,513.49
Department of Health,Leicestershire Partnership NHS Trust,04/01/23,NURSE - BAND 5 - AGENCY,Stewart House,HCL NURSING,HNSI0001215,1091.39
Department of Health,Leicestershire Partnership NHS Trust,04/01/23,NURSE - BAND 2 - AGENCY,Sycamore (Willows),HCL NURSING,HNSI0001215,1972.45
Department of Health,Leicestershire Partnership NHS Trust,04/01/23,NURSE - BAND 5 - AGENCY,Sycamore (Willows),HCL NURSING,HNSI0001215,3347.67
Department of Health,Leicestershire Partnership NHS Trust,04/01/23,NURSE - BAND 2 - AGENCY,Thornton Ward - Bradgate Unit,HCL NURSING,HNSI0001215,1005.72
Department of Health,Leicestershire Partnership NHS Trust,04/01/23,NURSE - BAND 5 - AGENCY,Thornton Ward - Bradgate Unit,HCL NURSING,HNSI0001215,2447.65
Department of Health,Leicestershire Partnership NHS Trust,04/01/23,NURSE - BAND 2 - AGENCY,Welford Ward,HCL NURSING,HNSI0001215,4032.57
Department of Health,Leicestershire Partnership NHS Trust,04/01/23,NURSE - BAND 5 - AGENCY,Welford Ward,HCL NURSING,HNSI0001215,2168.56
Department of Health,Leicestershire Partnership NHS Trust,04/01/23,NURSE - BAND 2 - AGENCY,CAMHS Inpatient Service,HCL NURSING,HNSI0001217,3947.22
Department of Health,Leicestershire Partnership NHS Trust,04/01/23,NURSE - BAND 5 - AGENCY,CAMHS Inpatient Service,HCL NURSING,HNSI0001217,7211.70
Department of Health,Leicestershire Partnership NHS Trust,04/01/23,NURSE - BAND 2 - AGENCY,CAMHS Learning Disabilities and Outreach Team,HCL NURSING,HNSI0001217,1857.86
Department of Health,Leicestershire Partnership NHS Trust,04/01/23,Nurse - Band 6 -Agency,CAMHS Waiting List Monies,HCL NURSING,HNSI0001217,4334.17
Department of Health,Leicestershire Partnership NHS Trust,04/01/23,NURSE - BAND 2 - AGENCY,Langley Ward ED Inpatient Service,HCL NURSING,HNSI0001217,2464.78
Department of Health,Leicestershire Partnership NHS Trust,04/01/23,NURSE - BAND 5 - AGENCY,Langley Ward ED Inpatient Service,HCL NURSING,HNSI0001217,1315.55
Department of Health,Leicestershire Partnership NHS Trust,05/01/23,Crs_NHS_LT1y -Resus Inventory Supplied.,Balance Sheet Collection,SUPPLY CHAIN CO LTD,1123215322,42703.32
Department of Health,Leicestershire Partnership NHS Trust,05/01/23,NURSE - BAND 2 - AGENCY,Beechwood Ward,HCL NURSING,HNSI0001210,7139.40
Department of Health,Leicestershire Partnership NHS Trust,05/01/23,NURSE - BAND 5 - AGENCY,Beechwood Ward,HCL NURSING,HNSI0001210,2175.58
Department of Health,Leicestershire Partnership NHS Trust,05/01/23,NURSE - BAND 2 - AGENCY,CHS Surge Ward,HCL NURSING,HNSI0001210,9350.62
Department of Health,Leicestershire Partnership NHS Trust,05/01/23,NURSE - BAND 5 - AGENCY,CHS Surge Ward,HCL NURSING,HNSI0001210,9465.70
Department of Health,Leicestershire Partnership NHS Trust,05/01/23,NURSE - BAND 5 - AGENCY,City Planned Care - East,HCL NURSING,HNSI0001210,8925.73
Department of Health,Leicestershire Partnership NHS Trust,05/01/23,NURSE - BAND 5 - AGENCY,City Planned Care - West,HCL NURSING,HNSI0001210,10958.40
Department of Health,Leicestershire Partnership NHS Trust,05/01/23,NURSE - BAND 2 - AGENCY,Clarendon Ward,HCL NURSING,HNSI0001210,8022.12
Department of Health,Leicestershire Partnership NHS Trust,05/01/23,NURSE - BAND 5 - AGENCY,Clarendon Ward,HCL NURSING,HNSI0001210,3509.39
Department of Health,Leicestershire Partnership NHS Trust,05/01/23,NURSE - BAND 2 - AGENCY,Coalville Snibston Ward,HCL NURSING,HNSI0001210,5160.27
Department of Health,Leicestershire Partnership NHS Trust,05/01/23,NURSE - BAND 5 - AGENCY,Coalville Snibston Ward,HCL NURSING,HNSI0001210,3141.00
Department of Health,Leicestershire Partnership NHS Trust,05/01/23,NURSE - BAND 2 - AGENCY,Coalville Ward 2,HCL NURSING,HNSI0001210,3430.73
Department of Health,Leicestershire Partnership NHS Trust,05/01/23,NURSE - BAND 5 - AGENCY,Coalville Ward 2,HCL NURSING,HNSI0001210,2985.04
Department of Health,Leicestershire Partnership NHS Trust,05/01/23,NURSE - BAND 2 - AGENCY,Dalgliesh Ward,HCL NURSING,HNSI0001210,836.03
Department of Health,Leicestershire Partnership NHS Trust,05/01/23,NURSE - BAND 5 - AGENCY,Dalgliesh Ward,HCL NURSING,HNSI0001210,3063.60
Department of Health,Leicestershire Partnership NHS Trust,05/01/23,NURSE - BAND 5 - AGENCY,"East Planned Care - Oadby,Wigston & Harborough",HCL NURSING,HNSI0001210,1456.52
Department of Health,Leicestershire Partnership NHS Trust,05/01/23,NURSE - BAND 2 - AGENCY,H&B Comm Hosp East Ward,HCL NURSING,HNSI0001210,3221.05
Department of Health,Leicestershire Partnership NHS Trust,05/01/23,NURSE - BAND 5 - AGENCY,H&B Comm Hosp East Ward,HCL NURSING,HNSI0001210,6316.88
Department of Health,Leicestershire Partnership NHS Trust,05/01/23,NURSE - BAND 2 - AGENCY,H&B Comm Hosp North Ward,HCL NURSING,HNSI0001210,3542.23
Department of Health,Leicestershire Partnership NHS Trust,05/01/23,NURSE - BAND 5 - AGENCY,H&B Comm Hosp North Ward,HCL NURSING,HNSI0001210,2513.87
Department of Health,Leicestershire Partnership NHS Trust,05/01/23,NURSE - BAND 2 - AGENCY,Lough Swithland Ward,HCL NURSING,HNSI0001210,3815.24
Department of Health,Leicestershire Partnership NHS Trust,05/01/23,NURSE - BAND 5 - AGENCY,Lough Swithland Ward,HCL NURSING,HNSI0001210,5610.22
Department of Health,Leicestershire Partnership NHS Trust,05/01/23,NURSE - BAND 2 - AGENCY,Rutland Ward Nursing,HCL NURSING,HNSI0001210,4016.59
Department of Health,Leicestershire Partnership NHS Trust,05/01/23,NURSE - BAND 5 - AGENCY,Rutland Ward Nursing,HCL NURSING,HNSI0001210,6884.10
Department of Health,Leicestershire Partnership NHS Trust,05/01/23,NURSE - BAND 2 - AGENCY,St Lukes Stroke Ward,HCL NURSING,HNSI0001210,7379.74
Department of Health,Leicestershire Partnership NHS Trust,05/01/23,NURSE - BAND 5 - AGENCY,St Lukes Stroke Ward,HCL NURSING,HNSI0001210,2001.54
Department of Health,Leicestershire Partnership NHS Trust,05/01/23,NURSE - BAND 2 - AGENCY,St Lukes Ward 3,HCL NURSING,HNSI0001210,2379.35
Department of Health,Leicestershire Partnership NHS Trust,05/01/23,NURSE - BAND 5 - AGENCY,St Lukes Ward 3,HCL NURSING,HNSI0001210,1017.69
Department of Health,Leicestershire Partnership NHS Trust,05/01/23,NURSE - BAND 5 - AGENCY,West Planned Care  - Hinckley Hub,HCL NURSING,HNSI0001210,793.93
Department of Health,Leicestershire Partnership NHS Trust,05/01/23,NURSE - BAND 2 - AGENCY,Beechwood Ward,HCL NURSING,HNSI0001216,7586.31
Department of Health,Leicestershire Partnership NHS Trust,05/01/23,NURSE - BAND 5 - AGENCY,Beechwood Ward,HCL NURSING,HNSI0001216,4081.20
Department of Health,Leicestershire Partnership NHS Trust,05/01/23,NURSE - BAND 2 - AGENCY,CHS Surge Ward,HCL NURSING,HNSI0001216,12476.61
Department of Health,Leicestershire Partnership NHS Trust,05/01/23,NURSE - BAND 5 - AGENCY,CHS Surge Ward,HCL NURSING,HNSI0001216,6294.16
Department of Health,Leicestershire Partnership NHS Trust,05/01/23,NURSE - BAND 5 - AGENCY,City Planned Care - East,HCL NURSING,HNSI0001216,5635.20
Department of Health,Leicestershire Partnership NHS Trust,05/01/23,NURSE - BAND 5 - AGENCY,City Planned Care - West,HCL NURSING,HNSI0001216,9682.38
Department of Health,Leicestershire Partnership NHS Trust,05/01/23,NURSE - BAND 2 - AGENCY,Clarendon Ward,HCL NURSING,HNSI0001216,6461.26
Department of Health,Leicestershire Partnership NHS Trust,05/01/23,NURSE - BAND 5 - AGENCY,Clarendon Ward,HCL NURSING,HNSI0001216,2153.90
Department of Health,Leicestershire Partnership NHS Trust,05/01/23,NURSE - BAND 2 - AGENCY,Coalville Snibston Ward,HCL NURSING,HNSI0001216,7232.69
Department of Health,Leicestershire Partnership NHS Trust,05/01/23,NURSE - BAND 5 - AGENCY,Coalville Snibston Ward,HCL NURSING,HNSI0001216,2064.58
Department of Health,Leicestershire Partnership NHS Trust,05/01/23,NURSE - BAND 2 - AGENCY,Coalville Ward 2,HCL NURSING,HNSI0001216,1831.46
Department of Health,Leicestershire Partnership NHS Trust,05/01/23,NURSE - BAND 5 - AGENCY,Coalville Ward 2,HCL NURSING,HNSI0001216,3319.03
Department of Health,Leicestershire Partnership NHS Trust,05/01/23,NURSE - BAND 2 - AGENCY,Dalgliesh Ward,HCL NURSING,HNSI0001216,1122.20
Department of Health,Leicestershire Partnership NHS Trust,05/01/23,NURSE - BAND 5 - AGENCY,Dalgliesh Ward,HCL NURSING,HNSI0001216,2454.13
Department of Health,Leicestershire Partnership NHS Trust,05/01/23,NURSE - BAND 5 - AGENCY,"East Planned Care - Oadby,Wigston & Harborough",HCL NURSING,HNSI0001216,1007.53
Department of Health,Leicestershire Partnership NHS Trust,05/01/23,NURSE - BAND 2 - AGENCY,H&B Comm Hosp East Ward,HCL NURSING,HNSI0001216,4692.14
Department of Health,Leicestershire Partnership NHS Trust,05/01/23,NURSE - BAND 5 - AGENCY,H&B Comm Hosp East Ward,HCL NURSING,HNSI0001216,6578.73
Department of Health,Leicestershire Partnership NHS Trust,05/01/23,NURSE - BAND 2 - AGENCY,H&B Comm Hosp North Ward,HCL NURSING,HNSI0001216,2333.29
Department of Health,Leicestershire Partnership NHS Trust,05/01/23,NURSE - BAND 5 - AGENCY,H&B Comm Hosp North Ward,HCL NURSING,HNSI0001216,2239.88
Department of Health,Leicestershire Partnership NHS Trust,05/01/23,NURSE - BAND 2 - AGENCY,Lough Swithland Ward,HCL NURSING,HNSI0001216,2256.38
Department of Health,Leicestershire Partnership NHS Trust,05/01/23,NURSE - BAND 5 - AGENCY,Lough Swithland Ward,HCL NURSING,HNSI0001216,964.39
Department of Health,Leicestershire Partnership NHS Trust,05/01/23,NURSE - BAND 2 - AGENCY,Rutland Ward Nursing,HCL NURSING,HNSI0001216,2826.86
Department of Health,Leicestershire Partnership NHS Trust,05/01/23,NURSE - BAND 5 - AGENCY,Rutland Ward Nursing,HCL NURSING,HNSI0001216,3761.69
Department of Health,Leicestershire Partnership NHS Trust,05/01/23,NURSE - BAND 2 - AGENCY,St Lukes Stroke Ward,HCL NURSING,HNSI0001216,7314.88
Department of Health,Leicestershire Partnership NHS Trust,05/01/23,NURSE - BAND 2 - AGENCY,St Lukes Ward 3,HCL NURSING,HNSI0001216,634.27
Department of Health,Leicestershire Partnership NHS Trust,05/01/23,NURSE - BAND 5 - AGENCY,St Lukes Ward 3,HCL NURSING,HNSI0001216,1535.71
Department of Health,Leicestershire Partnership NHS Trust,05/01/23,NURSE - BAND 5 - AGENCY,West Planned Care  - Hinckley Hub,HCL NURSING,HNSI0001216,315.21
Department of Health,Leicestershire Partnership NHS Trust,05/01/23,External Data Processing / Storage,Records & information Governance,L&R STORAGE,4011869,40759.37
Department of Health,Leicestershire Partnership NHS Trust,06/01/23,Network Costs - WAN Maint,HIS Infrastructure,VIRGIN MEDIA BUSINESS,262421-204,36176.51
Department of Health,Leicestershire Partnership NHS Trust,06/01/23,WIP Project Not in BS - Buildings excl Dwellings,Work in Progress,TILBURY DOUGLAS CONSTRUCTION LTD,23010024,127629.83
Department of Health,Leicestershire Partnership NHS Trust,09/01/23,Payroll Deductions -Home Electronics 75 Dec 22,Balance Sheet Collection,SME HCI LTD,143194,35763.70
Department of Health,Leicestershire Partnership NHS Trust,09/01/23,Computer License  Fees,Finance Department,SOFTCAT PLC,INVUK699549,39761.89
Department of Health,Leicestershire Partnership NHS Trust,09/01/23,Rent,"St Peters Health Center (Part 1st and 2nd floors) (P66, LPT)",LEICESTER LIFT CO,LEP1-SI1158,30082.84
Department of Health,Leicestershire Partnership NHS Trust,09/01/23,Nurse - Band 6 -Agency,AMH - Central Access Point,HCL WORKFORCE SOLUTIONS,HWSI0001494,4211.96
Department of Health,Leicestershire Partnership NHS Trust,09/01/23,Nurse - Band 6 -Agency,Adult City Central CMHT - St Peters,HCL WORKFORCE SOLUTIONS,HWSI0001494,549.62
Department of Health,Leicestershire Partnership NHS Trust,09/01/23,Nurse - Band 6 -Agency,Adult City East CMHT - Merlyn Vaz,HCL WORKFORCE SOLUTIONS,HWSI0001494,2683.59
Department of Health,Leicestershire Partnership NHS Trust,09/01/23,Nurse - Band 6 -Agency,Adult County Charnwood CMHT - Loughborough Base,HCL WORKFORCE SOLUTIONS,HWSI0001494,1069.97
Department of Health,Leicestershire Partnership NHS Trust,09/01/23,NURSE - BAND 5 - AGENCY,Ashby Ward (Bradgate Unit),HCL WORKFORCE SOLUTIONS,HWSI0001494,329.84
Department of Health,Leicestershire Partnership NHS Trust,09/01/23,NURSE - BAND 5 - AGENCY,Beaumont Ward - Bradgate Unit,HCL WORKFORCE SOLUTIONS,HWSI0001494,392.91
Department of Health,Leicestershire Partnership NHS Trust,09/01/23,Nurse - Band 6 -Agency,Crisis Resolution,HCL WORKFORCE SOLUTIONS,HWSI0001494,12174.50
Department of Health,Leicestershire Partnership NHS Trust,09/01/23,Nurse - Band 6 -Agency,South Leicestershire CMHT MHSOP,HCL WORKFORCE SOLUTIONS,HWSI0001494,2729.75
Department of Health,Leicestershire Partnership NHS Trust,09/01/23,Nurse - Band 6 -Agency,CAMHS HUB / CAP,HCL WORKFORCE SOLUTIONS,HWSI0001514,5969.22
Department of Health,Leicestershire Partnership NHS Trust,09/01/23,NURSE - BAND 5 - AGENCY,CAMHS Inpatient Service,HCL WORKFORCE SOLUTIONS,HWSI0001514,426.72
Department of Health,Leicestershire Partnership NHS Trust,09/01/23,Nurse - Band 6 -Agency,CAMHS Waiting List Monies,HCL WORKFORCE SOLUTIONS,HWSI0001514,13284.70
Department of Health,Leicestershire Partnership NHS Trust,09/01/23,Nurse - Band 6 -Agency,Crisis Response and Home Treatment,HCL WORKFORCE SOLUTIONS,HWSI0001514,1708.95
Department of Health,Leicestershire Partnership NHS Trust,09/01/23,Nurse - Band 6 -Agency,AMH - Central Access Point,HCL NURSING,HNSI0001209,2650.36
Department of Health,Leicestershire Partnership NHS Trust,09/01/23,Nurse - Band 7 - Agency,Adult County- East Leicester CMHT,HCL NURSING,HNSI0001209,2457.47
Department of Health,Leicestershire Partnership NHS Trust,09/01/23,NURSE - BAND 2 - AGENCY,Agnes Unit,HCL NURSING,HNSI0001209,19359.51
Department of Health,Leicestershire Partnership NHS Trust,09/01/23,NURSE - BAND 5 - AGENCY,Agnes Unit,HCL NURSING,HNSI0001209,22437.44
Department of Health,Leicestershire Partnership NHS Trust,09/01/23,NURSE - BAND 2 - AGENCY,Ashby Ward (Bradgate Unit),HCL NURSING,HNSI0001209,5613.99
Department of Health,Leicestershire Partnership NHS Trust,09/01/23,NURSE - BAND 5 - AGENCY,Ashby Ward (Bradgate Unit),HCL NURSING,HNSI0001209,14162.25
Department of Health,Leicestershire Partnership NHS Trust,09/01/23,NURSE - BAND 2 - AGENCY,Beaumont Ward - Bradgate Unit,HCL NURSING,HNSI0001209,2695.50
Department of Health,Leicestershire Partnership NHS Trust,09/01/23,NURSE - BAND 5 - AGENCY,Beaumont Ward - Bradgate Unit,HCL NURSING,HNSI0001209,14978.03
Department of Health,Leicestershire Partnership NHS Trust,09/01/23,NURSE - BAND 2 - AGENCY,Belvoir Psychiatric Intensive Care Unit,HCL NURSING,HNSI0001209,4161.75
Department of Health,Leicestershire Partnership NHS Trust,09/01/23,NURSE - BAND 5 - AGENCY,Belvoir Psychiatric Intensive Care Unit,HCL NURSING,HNSI0001209,6591.90
Department of Health,Leicestershire Partnership NHS Trust,09/01/23,NURSE - BAND 2 - AGENCY,Bosworth Ward - Bradgate Unit,HCL NURSING,HNSI0001209,1807.60
Department of Health,Leicestershire Partnership NHS Trust,09/01/23,NURSE - BAND 5 - AGENCY,Bosworth Ward - Bradgate Unit,HCL NURSING,HNSI0001209,8318.06
Department of Health,Leicestershire Partnership NHS Trust,09/01/23,NURSE - BAND 2 - AGENCY,Cedar (Willows),HCL NURSING,HNSI0001209,1500.89
Department of Health,Leicestershire Partnership NHS Trust,09/01/23,NURSE - BAND 5 - AGENCY,Cedar (Willows),HCL NURSING,HNSI0001209,2435.32
Department of Health,Leicestershire Partnership NHS Trust,09/01/23,Nurse - Band 6 -Agency,City West CMHT MHSOP,HCL NURSING,HNSI0001209,1073.25
Department of Health,Leicestershire Partnership NHS Trust,09/01/23,NURSE - BAND 2 - AGENCY,Coleman Ward,HCL NURSING,HNSI0001209,8653.53
Department of Health,Leicestershire Partnership NHS Trust,09/01/23,NURSE - BAND 5 - AGENCY,Coleman Ward,HCL NURSING,HNSI0001209,3888.22
Department of Health,Leicestershire Partnership NHS Trust,09/01/23,NURSE - BAND 5 - AGENCY,Crisis Resolution,HCL NURSING,HNSI0001209,1359.12
Department of Health,Leicestershire Partnership NHS Trust,09/01/23,NURSE - BAND 5 - AGENCY,Griffin Ward (HPC),HCL NURSING,HNSI0001209,14521.08
Department of Health,Leicestershire Partnership NHS Trust,09/01/23,NURSE - BAND 2 - AGENCY,Gwendolen Ward,HCL NURSING,HNSI0001209,6745.10
Department of Health,Leicestershire Partnership NHS Trust,09/01/23,NURSE - BAND 5 - AGENCY,Gwendolen Ward,HCL NURSING,HNSI0001209,3504.64
Department of Health,Leicestershire Partnership NHS Trust,09/01/23,NURSE - BAND 2 - AGENCY,Heather Ward,HCL NURSING,HNSI0001209,1386.25
Department of Health,Leicestershire Partnership NHS Trust,09/01/23,NURSE - BAND 5 - AGENCY,Heather Ward,HCL NURSING,HNSI0001209,6152.94
Department of Health,Leicestershire Partnership NHS Trust,09/01/23,NURSE - BAND 2 - AGENCY,Kirby Ward,HCL NURSING,HNSI0001209,2755.07
Department of Health,Leicestershire Partnership NHS Trust,09/01/23,NURSE - BAND 5 - AGENCY,Kirby Ward,HCL NURSING,HNSI0001209,2771.02
Department of Health,Leicestershire Partnership NHS Trust,09/01/23,NURSE - BAND 2 - AGENCY,Maple Ward,HCL NURSING,HNSI0001209,1948.00
Department of Health,Leicestershire Partnership NHS Trust,09/01/23,NURSE - BAND 5 - AGENCY,Maple Ward,HCL NURSING,HNSI0001209,2827.86
Department of Health,Leicestershire Partnership NHS Trust,09/01/23,Nurse - Band 6 -Agency,Mental Health Liaison Team,HCL NURSING,HNSI0001209,1773.46
Department of Health,Leicestershire Partnership NHS Trust,09/01/23,NURSE - BAND 2 - AGENCY,Mill Lodge,HCL NURSING,HNSI0001209,962.27
Department of Health,Leicestershire Partnership NHS Trust,09/01/23,NURSE - BAND 5 - AGENCY,Mill Lodge,HCL NURSING,HNSI0001209,2202.20
Department of Health,Leicestershire Partnership NHS Trust,09/01/23,NURSE - BAND 2 - AGENCY,Phoenix Ward (HPC),HCL NURSING,HNSI0001209,1257.79
Department of Health,Leicestershire Partnership NHS Trust,09/01/23,NURSE - BAND 5 - AGENCY,Phoenix Ward (HPC),HCL NURSING,HNSI0001209,1431.43
Department of Health,Leicestershire Partnership NHS Trust,09/01/23,NURSE - BAND 2 - AGENCY,Place Of Safety Assessment Unit,HCL NURSING,HNSI0001209,705.09
Department of Health,Leicestershire Partnership NHS Trust,09/01/23,NURSE - BAND 5 - AGENCY,Place Of Safety Assessment Unit,HCL NURSING,HNSI0001209,1936.19
Department of Health,Leicestershire Partnership NHS Trust,09/01/23,NURSE - BAND 2 - AGENCY,Stewart House,HCL NURSING,HNSI0001209,307.23
Department of Health,Leicestershire Partnership NHS Trust,09/01/23,NURSE - BAND 5 - AGENCY,Stewart House,HCL NURSING,HNSI0001209,449.54
Department of Health,Leicestershire Partnership NHS Trust,09/01/23,NURSE - BAND 2 - AGENCY,Sycamore (Willows),HCL NURSING,HNSI0001209,1889.63
Department of Health,Leicestershire Partnership NHS Trust,09/01/23,NURSE - BAND 5 - AGENCY,Sycamore (Willows),HCL NURSING,HNSI0001209,6540.99
Department of Health,Leicestershire Partnership NHS Trust,09/01/23,NURSE - BAND 2 - AGENCY,Thornton Ward - Bradgate Unit,HCL NURSING,HNSI0001209,502.42
Department of Health,Leicestershire Partnership NHS Trust,09/01/23,NURSE - BAND 5 - AGENCY,Thornton Ward - Bradgate Unit,HCL NURSING,HNSI0001209,1091.69
Department of Health,Leicestershire Partnership NHS Trust,09/01/23,NURSE - BAND 2 - AGENCY,Welford Ward,HCL NURSING,HNSI0001209,2094.69
Department of Health,Leicestershire Partnership NHS Trust,09/01/23,NURSE - BAND 5 - AGENCY,Welford Ward,HCL NURSING,HNSI0001209,1237.76
Department of Health,Leicestershire Partnership NHS Trust,09/01/23,Nurse - Band 6 -Agency,CAMHS HUB / CAP,HCL WORKFORCE SOLUTIONS,HWSI0001495,6273.65
Department of Health,Leicestershire Partnership NHS Trust,09/01/23,Nurse - Band 6 -Agency,CAMHS Waiting List Monies,HCL WORKFORCE SOLUTIONS,HWSI0001495,23107.81
Department of Health,Leicestershire Partnership NHS Trust,09/01/23,Nurse - Band 6 -Agency,Crisis Response and Home Treatment,HCL WORKFORCE SOLUTIONS,HWSI0001495,1934.86
Department of Health,Leicestershire Partnership NHS Trust,09/01/23,Nurse - Band 6 -Agency,AMH - Central Access Point,HCL NURSING,HNSI0001224,1550.82
Department of Health,Leicestershire Partnership NHS Trust,09/01/23,NURSE - BAND 2 - AGENCY,Agnes Unit,HCL NURSING,HNSI0001224,26175.18
Department of Health,Leicestershire Partnership NHS Trust,09/01/23,NURSE - BAND 5 - AGENCY,Agnes Unit,HCL NURSING,HNSI0001224,29928.08
Department of Health,Leicestershire Partnership NHS Trust,09/01/23,NURSE - BAND 2 - AGENCY,Ashby Ward (Bradgate Unit),HCL NURSING,HNSI0001224,3310.11
Department of Health,Leicestershire Partnership NHS Trust,09/01/23,NURSE - BAND 5 - AGENCY,Ashby Ward (Bradgate Unit),HCL NURSING,HNSI0001224,10775.12
Department of Health,Leicestershire Partnership NHS Trust,09/01/23,NURSE - BAND 2 - AGENCY,Beaumont Ward - Bradgate Unit,HCL NURSING,HNSI0001224,2433.06
Department of Health,Leicestershire Partnership NHS Trust,09/01/23,NURSE - BAND 5 - AGENCY,Beaumont Ward - Bradgate Unit,HCL NURSING,HNSI0001224,11651.78
Department of Health,Leicestershire Partnership NHS Trust,09/01/23,NURSE - BAND 2 - AGENCY,Belvoir Psychiatric Intensive Care Unit,HCL NURSING,HNSI0001224,5290.85
Department of Health,Leicestershire Partnership NHS Trust,09/01/23,NURSE - BAND 5 - AGENCY,Belvoir Psychiatric Intensive Care Unit,HCL NURSING,HNSI0001224,6474.22
Department of Health,Leicestershire Partnership NHS Trust,09/01/23,NURSE - BAND 2 - AGENCY,Bosworth Ward - Bradgate Unit,HCL NURSING,HNSI0001224,8292.51
Department of Health,Leicestershire Partnership NHS Trust,09/01/23,NURSE - BAND 2 - AGENCY,Cedar (Willows),HCL NURSING,HNSI0001224,898.92
Department of Health,Leicestershire Partnership NHS Trust,09/01/23,NURSE - BAND 5 - AGENCY,Cedar (Willows),HCL NURSING,HNSI0001224,1047.20
Department of Health,Leicestershire Partnership NHS Trust,09/01/23,NURSE - BAND 2 - AGENCY,Coleman Ward,HCL NURSING,HNSI0001224,10359.25
Department of Health,Leicestershire Partnership NHS Trust,09/01/23,NURSE - BAND 5 - AGENCY,Coleman Ward,HCL NURSING,HNSI0001224,6047.88
Department of Health,Leicestershire Partnership NHS Trust,09/01/23,NURSE - BAND 5 - AGENCY,Crisis Resolution,HCL NURSING,HNSI0001224,50.54
Department of Health,Leicestershire Partnership NHS Trust,09/01/23,Nurse - Band 6 -Agency,Crisis Resolution,HCL NURSING,HNSI0001224,3053.72
Department of Health,Leicestershire Partnership NHS Trust,09/01/23,NURSE - BAND 2 - AGENCY,Griffin Ward (HPC),HCL NURSING,HNSI0001224,5420.90
Department of Health,Leicestershire Partnership NHS Trust,09/01/23,NURSE - BAND 5 - AGENCY,Griffin Ward (HPC),HCL NURSING,HNSI0001224,7038.87
Department of Health,Leicestershire Partnership NHS Trust,09/01/23,NURSE - BAND 2 - AGENCY,Gwendolen Ward,HCL NURSING,HNSI0001224,6168.06
Department of Health,Leicestershire Partnership NHS Trust,09/01/23,NURSE - BAND 5 - AGENCY,Gwendolen Ward,HCL NURSING,HNSI0001224,3160.73
Department of Health,Leicestershire Partnership NHS Trust,09/01/23,NURSE - BAND 2 - AGENCY,Heather Ward,HCL NURSING,HNSI0001224,3493.38
Department of Health,Leicestershire Partnership NHS Trust,09/01/23,NURSE - BAND 5 - AGENCY,Heather Ward,HCL NURSING,HNSI0001224,2421.00
Department of Health,Leicestershire Partnership NHS Trust,09/01/23,NURSE - BAND 2 - AGENCY,Kirby Ward,HCL NURSING,HNSI0001224,2589.63
Department of Health,Leicestershire Partnership NHS Trust,09/01/23,NURSE - BAND 5 - AGENCY,Kirby Ward,HCL NURSING,HNSI0001224,291.46
Department of Health,Leicestershire Partnership NHS Trust,09/01/23,NURSE - BAND 2 - AGENCY,Maple Ward,HCL NURSING,HNSI0001224,1894.41
Department of Health,Leicestershire Partnership NHS Trust,09/01/23,NURSE - BAND 5 - AGENCY,Maple Ward,HCL NURSING,HNSI0001224,1680.35
Department of Health,Leicestershire Partnership NHS Trust,09/01/23,NURSE - BAND 2 - AGENCY,Mill Lodge,HCL NURSING,HNSI0001224,1026.56
Department of Health,Leicestershire Partnership NHS Trust,09/01/23,NURSE - BAND 5 - AGENCY,Mill Lodge,HCL NURSING,HNSI0001224,514.85
Department of Health,Leicestershire Partnership NHS Trust,09/01/23,NURSE - BAND 2 - AGENCY,Phoenix Ward (HPC),HCL NURSING,HNSI0001224,3150.49
Department of Health,Leicestershire Partnership NHS Trust,09/01/23,NURSE - BAND 5 - AGENCY,Phoenix Ward (HPC),HCL NURSING,HNSI0001224,2715.23
Department of Health,Leicestershire Partnership NHS Trust,09/01/23,NURSE - BAND 2 - AGENCY,Place Of Safety Assessment Unit,HCL NURSING,HNSI0001224,1116.46
Department of Health,Leicestershire Partnership NHS Trust,09/01/23,NURSE - BAND 5 - AGENCY,Place Of Safety Assessment Unit,HCL NURSING,HNSI0001224,2665.74
Department of Health,Leicestershire Partnership NHS Trust,09/01/23,NURSE - BAND 2 - AGENCY,Stewart House,HCL NURSING,HNSI0001224,1996.08
Department of Health,Leicestershire Partnership NHS Trust,09/01/23,NURSE - BAND 5 - AGENCY,Stewart House,HCL NURSING,HNSI0001224,650.65
Department of Health,Leicestershire Partnership NHS Trust,09/01/23,NURSE - BAND 2 - AGENCY,Sycamore (Willows),HCL NURSING,HNSI0001224,1512.73
Department of Health,Leicestershire Partnership NHS Trust,09/01/23,NURSE - BAND 5 - AGENCY,Sycamore (Willows),HCL NURSING,HNSI0001224,3807.77
Department of Health,Leicestershire Partnership NHS Trust,09/01/23,NURSE - BAND 2 - AGENCY,Thornton Ward - Bradgate Unit,HCL NURSING,HNSI0001224,307.23
Department of Health,Leicestershire Partnership NHS Trust,09/01/23,NURSE - BAND 5 - AGENCY,Thornton Ward - Bradgate Unit,HCL NURSING,HNSI0001224,2247.70
Department of Health,Leicestershire Partnership NHS Trust,09/01/23,NURSE - BAND 2 - AGENCY,Watermead Ward (Bradgate Unit),HCL NURSING,HNSI0001224,205.84
Department of Health,Leicestershire Partnership NHS Trust,09/01/23,NURSE - BAND 2 - AGENCY,Welford Ward,HCL NURSING,HNSI0001224,2664.88
Department of Health,Leicestershire Partnership NHS Trust,09/01/23,NURSE - BAND 5 - AGENCY,Welford Ward,HCL NURSING,HNSI0001224,1098.11
Department of Health,Leicestershire Partnership NHS Trust,10/01/23,HR / Payroll Services,HR Employment Services,LINCOLNSHIRE PART NHSFT(RP7),L0000612,34400.00
Department of Health,Leicestershire Partnership NHS Trust,10/01/23,WIP Project Not in BS - I M & T Allocations,Work in Progress,SPIRIT DIGITAL LTD,SIN230105SDI00042,405600.00
Department of Health,Leicestershire Partnership NHS Trust,10/01/23,Services / Recharges from NHS Trusts,Inter Unit I & E Distribution,UHL NHS TRUST (RWE),L0267025,158352.83
Department of Health,Leicestershire Partnership NHS Trust,10/01/23,Healthcare Services / Recharges from Non-NHS Bodies,Adult Eating Disorder Collaborative,PRIORY GROUP,301DEC22LECEAD,59232.18
Department of Health,Leicestershire Partnership NHS Trust,11/01/23,Payroll Deductions -NEST EES Pensions,Balance Sheet Collection,NEST,P09DEDS-313/2023,15824.69
Department of Health,Leicestershire Partnership NHS Trust,11/01/23,Payroll Deductions -NEST ERS Pensions,Balance Sheet Collection,NEST,P09DEDS-313/2023,11862.32
Department of Health,Leicestershire Partnership NHS Trust,11/01/23,NURSE - BAND 2 - AGENCY,Beechwood Ward,HCL NURSING,HNSI0001225,6064.38
Department of Health,Leicestershire Partnership NHS Trust,11/01/23,NURSE - BAND 5 - AGENCY,Beechwood Ward,HCL NURSING,HNSI0001225,1396.11
Department of Health,Leicestershire Partnership NHS Trust,11/01/23,NURSE - BAND 2 - AGENCY,CHS Surge Ward,HCL NURSING,HNSI0001225,13065.08
Department of Health,Leicestershire Partnership NHS Trust,11/01/23,NURSE - BAND 5 - AGENCY,CHS Surge Ward,HCL NURSING,HNSI0001225,8638.54
Department of Health,Leicestershire Partnership NHS Trust,11/01/23,NURSE - BAND 5 - AGENCY,City Planned Care - East,HCL NURSING,HNSI0001225,9378.90
Department of Health,Leicestershire Partnership NHS Trust,11/01/23,NURSE - BAND 5 - AGENCY,City Planned Care - West,HCL NURSING,HNSI0001225,8920.43
Department of Health,Leicestershire Partnership NHS Trust,11/01/23,NURSE - BAND 2 - AGENCY,Clarendon Ward,HCL NURSING,HNSI0001225,4985.21
Department of Health,Leicestershire Partnership NHS Trust,11/01/23,NURSE - BAND 5 - AGENCY,Clarendon Ward,HCL NURSING,HNSI0001225,4197.00
Department of Health,Leicestershire Partnership NHS Trust,11/01/23,NURSE - BAND 2 - AGENCY,Coalville Snibston Ward,HCL NURSING,HNSI0001225,3896.04
Department of Health,Leicestershire Partnership NHS Trust,11/01/23,NURSE - BAND 5 - AGENCY,Coalville Snibston Ward,HCL NURSING,HNSI0001225,2619.19
Department of Health,Leicestershire Partnership NHS Trust,11/01/23,NURSE - BAND 2 - AGENCY,Coalville Ward 2,HCL NURSING,HNSI0001225,2708.49
Department of Health,Leicestershire Partnership NHS Trust,11/01/23,NURSE - BAND 5 - AGENCY,Coalville Ward 2,HCL NURSING,HNSI0001225,900.90
Department of Health,Leicestershire Partnership NHS Trust,11/01/23,NURSE - BAND 2 - AGENCY,Dalgliesh Ward,HCL NURSING,HNSI0001225,2617.58
Department of Health,Leicestershire Partnership NHS Trust,11/01/23,NURSE - BAND 5 - AGENCY,Dalgliesh Ward,HCL NURSING,HNSI0001225,3462.60
Department of Health,Leicestershire Partnership NHS Trust,11/01/23,NURSE - BAND 5 - AGENCY,"East Planned Care - Oadby,Wigston & Harborough",HCL NURSING,HNSI0001225,69.01
Department of Health,Leicestershire Partnership NHS Trust,11/01/23,NURSE - BAND 2 - AGENCY,H&B Comm Hosp East Ward,HCL NURSING,HNSI0001225,10303.93
Department of Health,Leicestershire Partnership NHS Trust,11/01/23,NURSE - BAND 5 - AGENCY,H&B Comm Hosp East Ward,HCL NURSING,HNSI0001225,11759.51
Department of Health,Leicestershire Partnership NHS Trust,11/01/23,NURSE - BAND 2 - AGENCY,H&B Comm Hosp North Ward,HCL NURSING,HNSI0001225,5328.22
Department of Health,Leicestershire Partnership NHS Trust,11/01/23,NURSE - BAND 5 - AGENCY,H&B Comm Hosp North Ward,HCL NURSING,HNSI0001225,1175.18
Department of Health,Leicestershire Partnership NHS Trust,11/01/23,NURSE - BAND 2 - AGENCY,Lough Swithland Ward,HCL NURSING,HNSI0001225,1274.50
Department of Health,Leicestershire Partnership NHS Trust,11/01/23,NURSE - BAND 5 - AGENCY,Lough Swithland Ward,HCL NURSING,HNSI0001225,1176.00
Department of Health,Leicestershire Partnership NHS Trust,11/01/23,NURSE - BAND 2 - AGENCY,Rutland Ward Nursing,HCL NURSING,HNSI0001225,2166.41
Department of Health,Leicestershire Partnership NHS Trust,11/01/23,NURSE - BAND 5 - AGENCY,Rutland Ward Nursing,HCL NURSING,HNSI0001225,6877.13
Department of Health,Leicestershire Partnership NHS Trust,11/01/23,NURSE - BAND 2 - AGENCY,St Lukes Stroke Ward,HCL NURSING,HNSI0001225,5799.18
Department of Health,Leicestershire Partnership NHS Trust,11/01/23,NURSE - BAND 5 - AGENCY,St Lukes Stroke Ward,HCL NURSING,HNSI0001225,759.76
Department of Health,Leicestershire Partnership NHS Trust,11/01/23,NURSE - BAND 2 - AGENCY,St Lukes Ward 3,HCL NURSING,HNSI0001225,4183.29
Department of Health,Leicestershire Partnership NHS Trust,11/01/23,NURSE - BAND 5 - AGENCY,St Lukes Ward 3,HCL NURSING,HNSI0001225,903.54
Department of Health,Leicestershire Partnership NHS Trust,11/01/23,NURSE - BAND 5 - AGENCY,West Planned Care  - Hinckley Hub,HCL NURSING,HNSI0001225,26.80
Department of Health,Leicestershire Partnership NHS Trust,12/01/23,GP IT Expenditure,Area Team,DELL COMPUTERS,7402872649,43800.00
Department of Health,Leicestershire Partnership NHS Trust,13/01/23,Nurse - Band 6 -Agency,AMH - Central Access Point,HCL NURSING,HNSI0001228,2262.10
Department of Health,Leicestershire Partnership NHS Trust,13/01/23,Nurse - Band 7 - Agency,Adult County- East Leicester CMHT,HCL NURSING,HNSI0001228,819.16
Department of Health,Leicestershire Partnership NHS Trust,13/01/23,NURSE - BAND 5 - AGENCY,Agnes Unit,HCL NURSING,HNSI0001228,31315.48
Department of Health,Leicestershire Partnership NHS Trust,13/01/23,NURSE - BAND 2 - AGENCY,Ashby Ward (Bradgate Unit),HCL NURSING,HNSI0001228,1701.79
Department of Health,Leicestershire Partnership NHS Trust,13/01/23,NURSE - BAND 5 - AGENCY,Ashby Ward (Bradgate Unit),HCL NURSING,HNSI0001228,5891.01
Department of Health,Leicestershire Partnership NHS Trust,13/01/23,NURSE - BAND 2 - AGENCY,Beaumont Ward - Bradgate Unit,HCL NURSING,HNSI0001228,7273.09
Department of Health,Leicestershire Partnership NHS Trust,13/01/23,NURSE - BAND 5 - AGENCY,Beaumont Ward - Bradgate Unit,HCL NURSING,HNSI0001228,9354.34
Department of Health,Leicestershire Partnership NHS Trust,13/01/23,NURSE - BAND 2 - AGENCY,Belvoir Psychiatric Intensive Care Unit,HCL NURSING,HNSI0001228,4779.17
Department of Health,Leicestershire Partnership NHS Trust,13/01/23,NURSE - BAND 5 - AGENCY,Belvoir Psychiatric Intensive Care Unit,HCL NURSING,HNSI0001228,6922.37
Department of Health,Leicestershire Partnership NHS Trust,13/01/23,NURSE - BAND 2 - AGENCY,Bosworth Ward - Bradgate Unit,HCL NURSING,HNSI0001228,3283.83
Department of Health,Leicestershire Partnership NHS Trust,13/01/23,NURSE - BAND 5 - AGENCY,Bosworth Ward - Bradgate Unit,HCL NURSING,HNSI0001228,5173.80
Department of Health,Leicestershire Partnership NHS Trust,13/01/23,NURSE - BAND 2 - AGENCY,Cedar (Willows),HCL NURSING,HNSI0001228,205.84
Department of Health,Leicestershire Partnership NHS Trust,13/01/23,NURSE - BAND 2 - AGENCY,Coleman Ward,HCL NURSING,HNSI0001228,6968.06
Department of Health,Leicestershire Partnership NHS Trust,13/01/23,NURSE - BAND 5 - AGENCY,Coleman Ward,HCL NURSING,HNSI0001228,4588.40
Department of Health,Leicestershire Partnership NHS Trust,13/01/23,NURSE - BAND 2 - AGENCY,Griffin Ward (HPC),HCL NURSING,HNSI0001228,3582.74
Department of Health,Leicestershire Partnership NHS Trust,13/01/23,NURSE - BAND 5 - AGENCY,Griffin Ward (HPC),HCL NURSING,HNSI0001228,5544.71
Department of Health,Leicestershire Partnership NHS Trust,13/01/23,NURSE - BAND 2 - AGENCY,Gwendolen Ward,HCL NURSING,HNSI0001228,7122.46
Department of Health,Leicestershire Partnership NHS Trust,13/01/23,NURSE - BAND 5 - AGENCY,Gwendolen Ward,HCL NURSING,HNSI0001228,3205.76
Department of Health,Leicestershire Partnership NHS Trust,13/01/23,NURSE - BAND 2 - AGENCY,Heather Ward,HCL NURSING,HNSI0001228,2271.14
Department of Health,Leicestershire Partnership NHS Trust,13/01/23,NURSE - BAND 5 - AGENCY,Heather Ward,HCL NURSING,HNSI0001228,6008.48
Department of Health,Leicestershire Partnership NHS Trust,13/01/23,NURSE - BAND 2 - AGENCY,Kirby Ward,HCL NURSING,HNSI0001228,2140.54
Department of Health,Leicestershire Partnership NHS Trust,13/01/23,NURSE - BAND 5 - AGENCY,Kirby Ward,HCL NURSING,HNSI0001228,2841.67
Department of Health,Leicestershire Partnership NHS Trust,13/01/23,NURSE - BAND 2 - AGENCY,Maple Ward,HCL NURSING,HNSI0001228,1157.51
Department of Health,Leicestershire Partnership NHS Trust,13/01/23,NURSE - BAND 5 - AGENCY,Maple Ward,HCL NURSING,HNSI0001228,449.54
Department of Health,Leicestershire Partnership NHS Trust,13/01/23,NURSE - BAND 2 - AGENCY,Mill Lodge,HCL NURSING,HNSI0001228,767.72
Department of Health,Leicestershire Partnership NHS Trust,13/01/23,NURSE - BAND 5 - AGENCY,Mill Lodge,HCL NURSING,HNSI0001228,1496.74
Department of Health,Leicestershire Partnership NHS Trust,13/01/23,NURSE - BAND 2 - AGENCY,Phoenix Ward (HPC),HCL NURSING,HNSI0001228,4802.00
Department of Health,Leicestershire Partnership NHS Trust,13/01/23,NURSE - BAND 5 - AGENCY,Phoenix Ward (HPC),HCL NURSING,HNSI0001228,4618.06
Department of Health,Leicestershire Partnership NHS Trust,13/01/23,NURSE - BAND 2 - AGENCY,Place Of Safety Assessment Unit,HCL NURSING,HNSI0001228,273.49
Department of Health,Leicestershire Partnership NHS Trust,13/01/23,NURSE - BAND 5 - AGENCY,Place Of Safety Assessment Unit,HCL NURSING,HNSI0001228,3637.56
Department of Health,Leicestershire Partnership NHS Trust,13/01/23,NURSE - BAND 2 - AGENCY,Stewart House,HCL NURSING,HNSI0001228,344.03
Department of Health,Leicestershire Partnership NHS Trust,13/01/23,NURSE - BAND 5 - AGENCY,Stewart House,HCL NURSING,HNSI0001228,899.08
Department of Health,Leicestershire Partnership NHS Trust,13/01/23,NURSE - BAND 2 - AGENCY,Sycamore (Willows),HCL NURSING,HNSI0001228,566.68
Department of Health,Leicestershire Partnership NHS Trust,13/01/23,NURSE - BAND 5 - AGENCY,Sycamore (Willows),HCL NURSING,HNSI0001228,3982.18
Department of Health,Leicestershire Partnership NHS Trust,13/01/23,NURSE - BAND 2 - AGENCY,Thornton Ward - Bradgate Unit,HCL NURSING,HNSI0001228,804.10
Department of Health,Leicestershire Partnership NHS Trust,13/01/23,NURSE - BAND 5 - AGENCY,Thornton Ward - Bradgate Unit,HCL NURSING,HNSI0001228,1920.47
Department of Health,Leicestershire Partnership NHS Trust,13/01/23,NURSE - BAND 2 - AGENCY,Welford Ward,HCL NURSING,HNSI0001228,37166.84
Department of Health,Leicestershire Partnership NHS Trust,13/01/23,NURSE - BAND 5 - AGENCY,Welford Ward,HCL NURSING,HNSI0001228,1913.60
Department of Health,Leicestershire Partnership NHS Trust,13/01/23,Nurse - Band 6 -Agency,CAMHS HUB / CAP,HCL WORKFORCE SOLUTIONS,HWSI0001523,6529.91
Department of Health,Leicestershire Partnership NHS Trust,13/01/23,Nurse - Band 6 -Agency,CAMHS Waiting List Monies,HCL WORKFORCE SOLUTIONS,HWSI0001523,20717.71
Department of Health,Leicestershire Partnership NHS Trust,13/01/23,Nurse - Band 6 -Agency,Crisis Response and Home Treatment,HCL WORKFORCE SOLUTIONS,HWSI0001523,2228.15
Department of Health,Leicestershire Partnership NHS Trust,13/01/23,NURSE - BAND 2 - AGENCY,CAMHS Inpatient Service,HCL NURSING,HNSI0001230,5764.01
Department of Health,Leicestershire Partnership NHS Trust,13/01/23,NURSE - BAND 5 - AGENCY,CAMHS Inpatient Service,HCL NURSING,HNSI0001230,3818.48
Department of Health,Leicestershire Partnership NHS Trust,13/01/23,NURSE - BAND 2 - AGENCY,CAMHS Learning Disabilities and Outreach Team,HCL NURSING,HNSI0001230,1775.16
Department of Health,Leicestershire Partnership NHS Trust,13/01/23,Nurse - Band 6 -Agency,CAMHS Waiting List Monies,HCL NURSING,HNSI0001230,6868.65
Department of Health,Leicestershire Partnership NHS Trust,13/01/23,NURSE - BAND 2 - AGENCY,Langley Ward ED Inpatient Service,HCL NURSING,HNSI0001230,3223.35
Department of Health,Leicestershire Partnership NHS Trust,13/01/23,NURSE - BAND 2 - AGENCY,Beechwood Ward,HCL NURSING,HNSI0001229,6972.87
Department of Health,Leicestershire Partnership NHS Trust,13/01/23,NURSE - BAND 5 - AGENCY,Beechwood Ward,HCL NURSING,HNSI0001229,2838.15
Department of Health,Leicestershire Partnership NHS Trust,13/01/23,NURSE - BAND 5 - AGENCY,City Planned Care - East,HCL NURSING,HNSI0001229,5640.82
Department of Health,Leicestershire Partnership NHS Trust,13/01/23,NURSE - BAND 5 - AGENCY,City Planned Care - West,HCL NURSING,HNSI0001229,14185.32
Department of Health,Leicestershire Partnership NHS Trust,13/01/23,NURSE - BAND 2 - AGENCY,Clarendon Ward,HCL NURSING,HNSI0001229,8051.67
Department of Health,Leicestershire Partnership NHS Trust,13/01/23,NURSE - BAND 5 - AGENCY,Clarendon Ward,HCL NURSING,HNSI0001229,884.32
Department of Health,Leicestershire Partnership NHS Trust,13/01/23,NURSE - BAND 2 - AGENCY,Coalville Snibston Ward,HCL NURSING,HNSI0001229,5607.00
Department of Health,Leicestershire Partnership NHS Trust,13/01/23,NURSE - BAND 5 - AGENCY,Coalville Snibston Ward,HCL NURSING,HNSI0001229,5103.11
Department of Health,Leicestershire Partnership NHS Trust,13/01/23,NURSE - BAND 2 - AGENCY,Coalville Ward 2,HCL NURSING,HNSI0001229,3270.87
Department of Health,Leicestershire Partnership NHS Trust,13/01/23,NURSE - BAND 5 - AGENCY,Coalville Ward 2,HCL NURSING,HNSI0001229,3685.45
Department of Health,Leicestershire Partnership NHS Trust,13/01/23,NURSE - BAND 2 - AGENCY,Coalville Ward 4,HCL NURSING,HNSI0001229,9195.45
Department of Health,Leicestershire Partnership NHS Trust,13/01/23,NURSE - BAND 5 - AGENCY,Coalville Ward 4,HCL NURSING,HNSI0001229,5780.95
Department of Health,Leicestershire Partnership NHS Trust,13/01/23,NURSE - BAND 2 - AGENCY,Dalgliesh Ward,HCL NURSING,HNSI0001229,2287.27
Department of Health,Leicestershire Partnership NHS Trust,13/01/23,NURSE - BAND 5 - AGENCY,Dalgliesh Ward,HCL NURSING,HNSI0001229,3789.14
Department of Health,Leicestershire Partnership NHS Trust,13/01/23,NURSE - BAND 5 - AGENCY,"East Planned Care - Oadby,Wigston & Harborough",HCL NURSING,HNSI0001229,1002.97
Department of Health,Leicestershire Partnership NHS Trust,13/01/23,NURSE - BAND 2 - AGENCY,H&B Comm Hosp East Ward,HCL NURSING,HNSI0001229,12997.53
Department of Health,Leicestershire Partnership NHS Trust,13/01/23,NURSE - BAND 5 - AGENCY,H&B Comm Hosp East Ward,HCL NURSING,HNSI0001229,8469.77
Department of Health,Leicestershire Partnership NHS Trust,13/01/23,NURSE - BAND 2 - AGENCY,H&B Comm Hosp North Ward,HCL NURSING,HNSI0001229,5035.93
Department of Health,Leicestershire Partnership NHS Trust,13/01/23,NURSE - BAND 5 - AGENCY,H&B Comm Hosp North Ward,HCL NURSING,HNSI0001229,1506.42
Department of Health,Leicestershire Partnership NHS Trust,13/01/23,NURSE - BAND 2 - AGENCY,Lough Swithland Ward,HCL NURSING,HNSI0001229,1027.48
Department of Health,Leicestershire Partnership NHS Trust,13/01/23,NURSE - BAND 5 - AGENCY,Lough Swithland Ward,HCL NURSING,HNSI0001229,2116.40
Department of Health,Leicestershire Partnership NHS Trust,13/01/23,NURSE - BAND 2 - AGENCY,Rutland Ward Nursing,HCL NURSING,HNSI0001229,2091.55
Department of Health,Leicestershire Partnership NHS Trust,13/01/23,NURSE - BAND 5 - AGENCY,Rutland Ward Nursing,HCL NURSING,HNSI0001229,3946.88
Department of Health,Leicestershire Partnership NHS Trust,13/01/23,NURSE - BAND 2 - AGENCY,St Lukes Stroke Ward,HCL NURSING,HNSI0001229,4174.16
Department of Health,Leicestershire Partnership NHS Trust,13/01/23,NURSE - BAND 2 - AGENCY,St Lukes Ward 3,HCL NURSING,HNSI0001229,1322.44
Department of Health,Leicestershire Partnership NHS Trust,16/01/23,Insurance Costs,Chief Executives Office,NHS LITIGATION AUTHORITY,SICX411339,192613.10
Department of Health,Leicestershire Partnership NHS Trust,16/01/23,Cytogenetic Testing,Community Paediatrics,UHL NHS TRUST (RWE),L0267125,42800.72
Department of Health,Leicestershire Partnership NHS Trust,16/01/23,Services / Recharges from NHS Trusts,Inter Unit I & E Distribution,UHL NHS TRUST (RWE),L0267126,34461.04
Department of Health,Leicestershire Partnership NHS Trust,17/01/23,Crs_NHS_LT1y -Resus Inventory Supplied.,Balance Sheet Collection,SUPPLY CHAIN CO LTD,1123229298,29604.02
Department of Health,Leicestershire Partnership NHS Trust,17/01/23,WIP Project Not in BS - Buildings excl Dwellings,Work in Progress,TILBURY DOUGLAS CONSTRUCTION LTD,23010157,113425.50
Department of Health,Leicestershire Partnership NHS Trust,17/01/23,WIP Project Not in BS - Buildings excl Dwellings,Work in Progress,TILBURY DOUGLAS CONSTRUCTION LTD,23010170,66306.01
Department of Health,Leicestershire Partnership NHS Trust,17/01/23,WIP Project Not in BS - Buildings excl Dwellings,Work in Progress,TILBURY DOUGLAS CONSTRUCTION LTD,23010152,28697.28
Department of Health,Leicestershire Partnership NHS Trust,17/01/23,WIP Project Not in BS - Buildings excl Dwellings,Work in Progress,TILBURY DOUGLAS CONSTRUCTION LTD,23010153,26846.17
Department of Health,Leicestershire Partnership NHS Trust,17/01/23,WIP Project Not in BS - Buildings excl Dwellings,Work in Progress,TILBURY DOUGLAS CONSTRUCTION LTD,23010158,39974.00
Department of Health,Leicestershire Partnership NHS Trust,17/01/23,WIP Project Not in BS - Buildings excl Dwellings,Work in Progress,TILBURY DOUGLAS CONSTRUCTION LTD,23010172,81163.92
Department of Health,Leicestershire Partnership NHS Trust,17/01/23,WIP Project Not in BS - Buildings excl Dwellings,Work in Progress,TILBURY DOUGLAS CONSTRUCTION LTD,23010174,42563.33
Department of Health,Leicestershire Partnership NHS Trust,18/01/23,Healthcare Services / Recharges from Non-NHS Bodies,Adult Eating Disorder Collaborative,ELLERN MEDE MOORGATE,OTM0532,37200.00
Department of Health,Leicestershire Partnership NHS Trust,18/01/23,GP IT Expenditure,Area Team,DELL COMPUTERS,7402879481,35100.00
Department of Health,Leicestershire Partnership NHS Trust,19/01/23,Services / Recharges from NHS Trusts,Inter Unit I & E Distribution,UHL NHS TRUST (RWE),L0267294,158352.83
Department of Health,Leicestershire Partnership NHS Trust,20/01/23,NURSE - BAND 2 - AGENCY,Beechwood Ward,HCL NURSING,HNSI0001235,6643.79
Department of Health,Leicestershire Partnership NHS Trust,20/01/23,NURSE - BAND 5 - AGENCY,Beechwood Ward,HCL NURSING,HNSI0001235,5506.43
Department of Health,Leicestershire Partnership NHS Trust,20/01/23,NURSE - BAND 2 - AGENCY,CHS Surge Ward,HCL NURSING,HNSI0001235,12498.24
Department of Health,Leicestershire Partnership NHS Trust,20/01/23,NURSE - BAND 5 - AGENCY,CHS Surge Ward,HCL NURSING,HNSI0001235,4983.91
Department of Health,Leicestershire Partnership NHS Trust,20/01/23,NURSE - BAND 5 - AGENCY,City Planned Care - East,HCL NURSING,HNSI0001235,7060.79
Department of Health,Leicestershire Partnership NHS Trust,20/01/23,NURSE - BAND 5 - AGENCY,City Planned Care - West,HCL NURSING,HNSI0001235,13934.53
Department of Health,Leicestershire Partnership NHS Trust,20/01/23,NURSE - BAND 2 - AGENCY,Clarendon Ward,HCL NURSING,HNSI0001235,4732.18
Department of Health,Leicestershire Partnership NHS Trust,20/01/23,NURSE - BAND 5 - AGENCY,Clarendon Ward,HCL NURSING,HNSI0001235,2583.42
Department of Health,Leicestershire Partnership NHS Trust,20/01/23,NURSE - BAND 2 - AGENCY,Coalville Snibston Ward,HCL NURSING,HNSI0001235,3780.08
Department of Health,Leicestershire Partnership NHS Trust,20/01/23,NURSE - BAND 5 - AGENCY,Coalville Snibston Ward,HCL NURSING,HNSI0001235,5326.16
Department of Health,Leicestershire Partnership NHS Trust,20/01/23,NURSE - BAND 2 - AGENCY,Coalville Ward 2,HCL NURSING,HNSI0001235,4203.82
Department of Health,Leicestershire Partnership NHS Trust,20/01/23,NURSE - BAND 5 - AGENCY,Coalville Ward 2,HCL NURSING,HNSI0001235,1799.98
Department of Health,Leicestershire Partnership NHS Trust,20/01/23,NURSE - BAND 5 - AGENCY,Dalgliesh Ward,HCL NURSING,HNSI0001235,4439.18
Department of Health,Leicestershire Partnership NHS Trust,20/01/23,NURSE - BAND 5 - AGENCY,"East Planned Care - Oadby,Wigston & Harborough",HCL NURSING,HNSI0001235,1034.67
Department of Health,Leicestershire Partnership NHS Trust,20/01/23,NURSE - BAND 2 - AGENCY,H&B Comm Hosp East Ward,HCL NURSING,HNSI0001235,17362.78
Department of Health,Leicestershire Partnership NHS Trust,20/01/23,NURSE - BAND 2 - AGENCY,H&B Comm Hosp North Ward,HCL NURSING,HNSI0001235,3838.49
Department of Health,Leicestershire Partnership NHS Trust,20/01/23,NURSE - BAND 5 - AGENCY,H&B Comm Hosp North Ward,HCL NURSING,HNSI0001235,1610.20
Department of Health,Leicestershire Partnership NHS Trust,20/01/23,NURSE - BAND 2 - AGENCY,Lough Swithland Ward,HCL NURSING,HNSI0001235,3318.81
Department of Health,Leicestershire Partnership NHS Trust,20/01/23,NURSE - BAND 5 - AGENCY,Lough Swithland Ward,HCL NURSING,HNSI0001235,2683.10
Department of Health,Leicestershire Partnership NHS Trust,20/01/23,NURSE - BAND 2 - AGENCY,Rutland Ward Nursing,HCL NURSING,HNSI0001235,3417.62
Department of Health,Leicestershire Partnership NHS Trust,20/01/23,NURSE - BAND 5 - AGENCY,Rutland Ward Nursing,HCL NURSING,HNSI0001235,4466.27
Department of Health,Leicestershire Partnership NHS Trust,20/01/23,NURSE - BAND 2 - AGENCY,St Lukes Stroke Ward,HCL NURSING,HNSI0001235,4401.24
Department of Health,Leicestershire Partnership NHS Trust,20/01/23,NURSE - BAND 5 - AGENCY,St Lukes Stroke Ward,HCL NURSING,HNSI0001235,1632.10
Department of Health,Leicestershire Partnership NHS Trust,20/01/23,NURSE - BAND 2 - AGENCY,St Lukes Ward 3,HCL NURSING,HNSI0001235,1291.69
Department of Health,Leicestershire Partnership NHS Trust,20/01/23,NURSE - BAND 5 - AGENCY,St Lukes Ward 3,HCL NURSING,HNSI0001235,1086.70
Department of Health,Leicestershire Partnership NHS Trust,23/01/23,Landline Telephone Rental / Calls,"Beaumont Leys Health Centre (P94, LPT)",VIRGIN MEDIA BUSINESS,853083001/004/0123,1707.88
Department of Health,Leicestershire Partnership NHS Trust,23/01/23,Landline Telephone Rental / Calls,"Bennion Centre (including Forest Grange Day Unit) (P8, LPT)",VIRGIN MEDIA BUSINESS,853083001/004/0123,7.74
Department of Health,Leicestershire Partnership NHS Trust,23/01/23,Landline Telephone Rental / Calls,"Bradgate Unit (including Glenvale day Unit) (P7, LPT)",VIRGIN MEDIA BUSINESS,853083001/004/0123,8448.90
Department of Health,Leicestershire Partnership NHS Trust,23/01/23,Landline Telephone Rental / Calls,Braunstone Health and Social Care Centre (Part) (PROPCO),VIRGIN MEDIA BUSINESS,853083001/004/0123,1060.73
Department of Health,Leicestershire Partnership NHS Trust,23/01/23,Landline Telephone Rental / Calls,Bridge Park Plaza - First Floor (LPT),VIRGIN MEDIA BUSINESS,853083001/004/0123,2573.62
Department of Health,Leicestershire Partnership NHS Trust,23/01/23,Landline Telephone Rental / Calls,"Coalville Community Hospital (P138, LPT)",VIRGIN MEDIA BUSINESS,853083001/004/0123,1438.74
Department of Health,Leicestershire Partnership NHS Trust,23/01/23,Landline Telephone Rental / Calls,"Coalville Health Centre (P121, LPT)",VIRGIN MEDIA BUSINESS,853083001/004/0123,106.02
Department of Health,Leicestershire Partnership NHS Trust,23/01/23,Landline Telephone Rental / Calls,County Hall,VIRGIN MEDIA BUSINESS,853083001/004/0123,1529.88
Department of Health,Leicestershire Partnership NHS Trust,23/01/23,Landline Telephone Rental / Calls,Estates & Facilities Central,VIRGIN MEDIA BUSINESS,853083001/004/0123,-131.83
Department of Health,Leicestershire Partnership NHS Trust,23/01/23,Landline Telephone Rental / Calls,"Evington Centre (P6, LPT)",VIRGIN MEDIA BUSINESS,853083001/004/0123,204.06
Department of Health,Leicestershire Partnership NHS Trust,23/01/23,Landline Telephone Rental / Calls,HIS,VIRGIN MEDIA BUSINESS,853083001/004/0123,2736.20
Department of Health,Leicestershire Partnership NHS Trust,23/01/23,Landline Telephone Rental / Calls,"Hawthorne Centre - Coalville (P14, LPT)",VIRGIN MEDIA BUSINESS,853083001/004/0123,449.56
Department of Health,Leicestershire Partnership NHS Trust,23/01/23,Landline Telephone Rental / Calls,"Hinckley and Bosworth Community Hospital (Sunnyside) (P133, LPT)",VIRGIN MEDIA BUSINESS,853083001/004/0123,960.71
Department of Health,Leicestershire Partnership NHS Trust,23/01/23,Landline Telephone Rental / Calls,Hood Park Leisure Centre Clinic,VIRGIN MEDIA BUSINESS,853083001/004/0123,23.22
Department of Health,Leicestershire Partnership NHS Trust,23/01/23,Landline Telephone Rental / Calls,"Hynca Lodge (P33, LPT)",VIRGIN MEDIA BUSINESS,853083001/004/0123,375.91
Department of Health,Leicestershire Partnership NHS Trust,23/01/23,Landline Telephone Rental / Calls,"Legion House, Ashby",VIRGIN MEDIA BUSINESS,853083001/004/0123,61.81
Department of Health,Leicestershire Partnership NHS Trust,23/01/23,Landline Telephone Rental / Calls,"Loughborough Hospital (P136, LPT)",VIRGIN MEDIA BUSINESS,853083001/004/0123,4260.72
Department of Health,Leicestershire Partnership NHS Trust,23/01/23,Landline Telephone Rental / Calls,Mawson House (LPT),VIRGIN MEDIA BUSINESS,853083001/004/0123,444.49
Department of Health,Leicestershire Partnership NHS Trust,23/01/23,Landline Telephone Rental / Calls,Merlyn Vaz Centre (CHP),VIRGIN MEDIA BUSINESS,853083001/004/0123,1408.16
Department of Health,Leicestershire Partnership NHS Trust,23/01/23,Landline Telephone Rental / Calls,"Mett Centre (P49, LPT)",VIRGIN MEDIA BUSINESS,853083001/004/0123,83.47
Department of Health,Leicestershire Partnership NHS Trust,23/01/23,Landline Telephone Rental / Calls,NSPCC Training Cente,VIRGIN MEDIA BUSINESS,853083001/004/0123,159.96
Department of Health,Leicestershire Partnership NHS Trust,23/01/23,Landline Telephone Rental / Calls,New Parks Health Centre (PROPCO),VIRGIN MEDIA BUSINESS,853083001/004/0123,1623.17
Department of Health,Leicestershire Partnership NHS Trust,23/01/23,Landline Telephone Rental / Calls,"OSL House (P54, LPT)",VIRGIN MEDIA BUSINESS,853083001/004/0123,897.35
Department of Health,Leicestershire Partnership NHS Trust,23/01/23,Landline Telephone Rental / Calls,"Orchard Resource Centre (P15, LPT)",VIRGIN MEDIA BUSINESS,853083001/004/0123,536.57
Department of Health,Leicestershire Partnership NHS Trust,23/01/23,Landline Telephone Rental / Calls,Pasley Road Health Centre (PROPCO),VIRGIN MEDIA BUSINESS,853083001/004/0123,149.05
Department of Health,Leicestershire Partnership NHS Trust,23/01/23,Landline Telephone Rental / Calls,"Prince Philip House (P96, LPT)",VIRGIN MEDIA BUSINESS,853083001/004/0123,1491.13
Department of Health,Leicestershire Partnership NHS Trust,23/01/23,Landline Telephone Rental / Calls,Rushey Mead Health Centre (PROPCO),VIRGIN MEDIA BUSINESS,853083001/004/0123,69.76
Department of Health,Leicestershire Partnership NHS Trust,23/01/23,Landline Telephone Rental / Calls,"Shepshed Health Centre (P123, LPT)",VIRGIN MEDIA BUSINESS,853083001/004/0123,-5.16
Department of Health,Leicestershire Partnership NHS Trust,23/01/23,Landline Telephone Rental / Calls,"Springfield Road Health Centre (P92, LPT)",VIRGIN MEDIA BUSINESS,853083001/004/0123,349.30
Department of Health,Leicestershire Partnership NHS Trust,23/01/23,Landline Telephone Rental / Calls,"St Peters Health Center (Part 1st and 2nd floors) (P66, LPT)",VIRGIN MEDIA BUSINESS,853083001/004/0123,1531.64
Department of Health,Leicestershire Partnership NHS Trust,23/01/23,Landline Telephone Rental / Calls,"Swithland House - London Road 352 (P44, LPT)",VIRGIN MEDIA BUSINESS,853083001/004/0123,262.73
Department of Health,Leicestershire Partnership NHS Trust,23/01/23,Landline Telephone Rental / Calls,"The Cedars (P19, LPT)",VIRGIN MEDIA BUSINESS,853083001/004/0123,744.29
Department of Health,Leicestershire Partnership NHS Trust,23/01/23,Landline Telephone Rental / Calls,"The Willows - Cordelia Close (P22, LPT)",VIRGIN MEDIA BUSINESS,853083001/004/0123,508.58
Department of Health,Leicestershire Partnership NHS Trust,23/01/23,Landline Telephone Rental / Calls,"Valentine Centre (P3, LPT)",VIRGIN MEDIA BUSINESS,853083001/004/0123,1710.08
Department of Health,Leicestershire Partnership NHS Trust,23/01/23,Landline Telephone Rental / Calls,Warren Park Way 25 (PROPCO),VIRGIN MEDIA BUSINESS,853083001/004/0123,709.24
Department of Health,Leicestershire Partnership NHS Trust,23/01/23,Landline Telephone Rental / Calls,"Winstanley Drive Health Centre (P8, LPT)",VIRGIN MEDIA BUSINESS,853083001/004/0123,55.80
Department of Health,Leicestershire Partnership NHS Trust,23/01/23,Nurse - Band 7 - Agency,Adult County- East Leicester CMHT,HCL NURSING,HNSI0001234,1183.25
Department of Health,Leicestershire Partnership NHS Trust,23/01/23,NURSE - BAND 2 - AGENCY,Agnes Unit,HCL NURSING,HNSI0001234,32154.10
Department of Health,Leicestershire Partnership NHS Trust,23/01/23,NURSE - BAND 5 - AGENCY,Agnes Unit,HCL NURSING,HNSI0001234,32796.53
Department of Health,Leicestershire Partnership NHS Trust,23/01/23,NURSE - BAND 2 - AGENCY,Ashby Ward (Bradgate Unit),HCL NURSING,HNSI0001234,3764.80
Department of Health,Leicestershire Partnership NHS Trust,23/01/23,NURSE - BAND 5 - AGENCY,Ashby Ward (Bradgate Unit),HCL NURSING,HNSI0001234,5449.95
Department of Health,Leicestershire Partnership NHS Trust,23/01/23,NURSE - BAND 5 - AGENCY,Beaumont Ward - Bradgate Unit,HCL NURSING,HNSI0001234,12497.40
Department of Health,Leicestershire Partnership NHS Trust,23/01/23,NURSE - BAND 2 - AGENCY,Belvoir Psychiatric Intensive Care Unit,HCL NURSING,HNSI0001234,5042.95
Department of Health,Leicestershire Partnership NHS Trust,23/01/23,NURSE - BAND 5 - AGENCY,Belvoir Psychiatric Intensive Care Unit,HCL NURSING,HNSI0001234,2546.59
Department of Health,Leicestershire Partnership NHS Trust,23/01/23,NURSE - BAND 2 - AGENCY,Bosworth Ward - Bradgate Unit,HCL NURSING,HNSI0001234,1697.25
Department of Health,Leicestershire Partnership NHS Trust,23/01/23,NURSE - BAND 5 - AGENCY,Bosworth Ward - Bradgate Unit,HCL NURSING,HNSI0001234,8094.86
Department of Health,Leicestershire Partnership NHS Trust,23/01/23,NURSE - BAND 2 - AGENCY,Cedar (Willows),HCL NURSING,HNSI0001234,805.45
Department of Health,Leicestershire Partnership NHS Trust,23/01/23,NURSE - BAND 5 - AGENCY,Cedar (Willows),HCL NURSING,HNSI0001234,2665.23
Department of Health,Leicestershire Partnership NHS Trust,23/01/23,Nurse - Band 6 -Agency,City West CMHT MHSOP,HCL NURSING,HNSI0001234,638.55
Department of Health,Leicestershire Partnership NHS Trust,23/01/23,NURSE - BAND 2 - AGENCY,Coleman Ward,HCL NURSING,HNSI0001234,6596.93
Department of Health,Leicestershire Partnership NHS Trust,23/01/23,NURSE - BAND 5 - AGENCY,Coleman Ward,HCL NURSING,HNSI0001234,4396.80
Department of Health,Leicestershire Partnership NHS Trust,23/01/23,NURSE - BAND 2 - AGENCY,Griffin Ward (HPC),HCL NURSING,HNSI0001234,1551.41
Department of Health,Leicestershire Partnership NHS Trust,23/01/23,NURSE - BAND 5 - AGENCY,Griffin Ward (HPC),HCL NURSING,HNSI0001234,7748.72
Department of Health,Leicestershire Partnership NHS Trust,23/01/23,NURSE - BAND 2 - AGENCY,Gwendolen Ward,HCL NURSING,HNSI0001234,4680.49
Department of Health,Leicestershire Partnership NHS Trust,23/01/23,NURSE - BAND 5 - AGENCY,Gwendolen Ward,HCL NURSING,HNSI0001234,3477.03
Department of Health,Leicestershire Partnership NHS Trust,23/01/23,NURSE - BAND 2 - AGENCY,Heather Ward,HCL NURSING,HNSI0001234,1423.94
Department of Health,Leicestershire Partnership NHS Trust,23/01/23,NURSE - BAND 5 - AGENCY,Heather Ward,HCL NURSING,HNSI0001234,6132.22
Department of Health,Leicestershire Partnership NHS Trust,23/01/23,NURSE - BAND 2 - AGENCY,Kirby Ward,HCL NURSING,HNSI0001234,1559.13
Department of Health,Leicestershire Partnership NHS Trust,23/01/23,NURSE - BAND 5 - AGENCY,Kirby Ward,HCL NURSING,HNSI0001234,2194.90
Department of Health,Leicestershire Partnership NHS Trust,23/01/23,NURSE - BAND 2 - AGENCY,Maple Ward,HCL NURSING,HNSI0001234,2345.06
Department of Health,Leicestershire Partnership NHS Trust,23/01/23,NURSE - BAND 5 - AGENCY,Maple Ward,HCL NURSING,HNSI0001234,899.08
Department of Health,Leicestershire Partnership NHS Trust,23/01/23,Nurse - Band 6 -Agency,Mental Health Liaison Team,HCL NURSING,HNSI0001234,2268.07
Department of Health,Leicestershire Partnership NHS Trust,23/01/23,NURSE - BAND 5 - AGENCY,Mill Lodge,HCL NURSING,HNSI0001234,1003.50
Department of Health,Leicestershire Partnership NHS Trust,23/01/23,NURSE - BAND 2 - AGENCY,Phoenix Ward (HPC),HCL NURSING,HNSI0001234,2532.27
Department of Health,Leicestershire Partnership NHS Trust,23/01/23,NURSE - BAND 5 - AGENCY,Phoenix Ward (HPC),HCL NURSING,HNSI0001234,3896.17
Department of Health,Leicestershire Partnership NHS Trust,23/01/23,NURSE - BAND 2 - AGENCY,Place Of Safety Assessment Unit,HCL NURSING,HNSI0001234,451.89
Department of Health,Leicestershire Partnership NHS Trust,23/01/23,NURSE - BAND 5 - AGENCY,Place Of Safety Assessment Unit,HCL NURSING,HNSI0001234,4728.87
Department of Health,Leicestershire Partnership NHS Trust,23/01/23,NURSE - BAND 2 - AGENCY,Stewart House,HCL NURSING,HNSI0001234,269.49
Department of Health,Leicestershire Partnership NHS Trust,23/01/23,NURSE - BAND 2 - AGENCY,Sycamore (Willows),HCL NURSING,HNSI0001234,678.39
Department of Health,Leicestershire Partnership NHS Trust,23/01/23,NURSE - BAND 5 - AGENCY,Sycamore (Willows),HCL NURSING,HNSI0001234,1326.24
Department of Health,Leicestershire Partnership NHS Trust,23/01/23,NURSE - BAND 2 - AGENCY,Thornton Ward - Bradgate Unit,HCL NURSING,HNSI0001234,3497.42
Department of Health,Leicestershire Partnership NHS Trust,23/01/23,NURSE - BAND 5 - AGENCY,Thornton Ward - Bradgate Unit,HCL NURSING,HNSI0001234,2709.99
Department of Health,Leicestershire Partnership NHS Trust,23/01/23,NURSE - BAND 2 - AGENCY,Watermead Ward (Bradgate Unit),HCL NURSING,HNSI0001234,333.20
Department of Health,Leicestershire Partnership NHS Trust,23/01/23,NURSE - BAND 5 - AGENCY,Watermead Ward (Bradgate Unit),HCL NURSING,HNSI0001234,1051.74
Department of Health,Leicestershire Partnership NHS Trust,23/01/23,NURSE - BAND 2 - AGENCY,Welford Ward,HCL NURSING,HNSI0001234,1864.68
Department of Health,Leicestershire Partnership NHS Trust,23/01/23,Nurse - Band 6 -Agency,CAMHS HUB / CAP,HCL WORKFORCE SOLUTIONS,HWSI0001539,6664.96
Department of Health,Leicestershire Partnership NHS Trust,23/01/23,Nurse - Band 6 -Agency,CAMHS Waiting List Monies,HCL WORKFORCE SOLUTIONS,HWSI0001539,18568.08
Department of Health,Leicestershire Partnership NHS Trust,23/01/23,Nurse - Band 6 -Agency,Crisis Response and Home Treatment,HCL WORKFORCE SOLUTIONS,HWSI0001539,2085.21
Department of Health,Leicestershire Partnership NHS Trust,23/01/23,NURSE - BAND 2 - AGENCY,CAMHS Inpatient Service,HCL NURSING,HNSI0001236,13295.80
Department of Health,Leicestershire Partnership NHS Trust,23/01/23,NURSE - BAND 5 - AGENCY,CAMHS Inpatient Service,HCL NURSING,HNSI0001236,5228.18
Department of Health,Leicestershire Partnership NHS Trust,23/01/23,NURSE - BAND 2 - AGENCY,CAMHS Learning Disabilities and Outreach Team,HCL NURSING,HNSI0001236,1746.11
Department of Health,Leicestershire Partnership NHS Trust,23/01/23,Nurse - Band 6 -Agency,CAMHS Waiting List Monies,HCL NURSING,HNSI0001236,2943.34
Department of Health,Leicestershire Partnership NHS Trust,23/01/23,NURSE - BAND 2 - AGENCY,Langley Ward ED Inpatient Service,HCL NURSING,HNSI0001236,1537.32
Department of Health,Leicestershire Partnership NHS Trust,23/01/23,NURSE - BAND 5 - AGENCY,Langley Ward ED Inpatient Service,HCL NURSING,HNSI0001236,2651.10
Department of Health,Leicestershire Partnership NHS Trust,23/01/23,Gas,"Beaumont Leys Health Centre (P94, LPT)",TOTAL GAS & POWER LTD,289304075/22,1852.47
Department of Health,Leicestershire Partnership NHS Trust,23/01/23,Gas,"Bennion Centre (including Forest Grange Day Unit) (P8, LPT)",TOTAL GAS & POWER LTD,289304075/22,23928.34
Department of Health,Leicestershire Partnership NHS Trust,23/01/23,Gas,"Bradgate Unit (including Glenvale day Unit) (P7, LPT)",TOTAL GAS & POWER LTD,289304075/22,36036.06
Department of Health,Leicestershire Partnership NHS Trust,23/01/23,Gas,Bridge Park Plaza - First Floor (LPT),TOTAL GAS & POWER LTD,289304075/22,4972.79
Department of Health,Leicestershire Partnership NHS Trust,23/01/23,Gas,"Bridge Park Road - Units 2 and 3 (P148, LPT)",TOTAL GAS & POWER LTD,289304075/22,653.48
Department of Health,Leicestershire Partnership NHS Trust,23/01/23,Gas,"Coalville Community Hospital (P138, LPT)",TOTAL GAS & POWER LTD,289304075/22,24763.26
Department of Health,Leicestershire Partnership NHS Trust,23/01/23,Gas,"Coalville Health Centre (P121, LPT)",TOTAL GAS & POWER LTD,289304075/22,1841.69
Department of Health,Leicestershire Partnership NHS Trust,23/01/23,Gas,"Evington Centre (P6, LPT)",TOTAL GAS & POWER LTD,289304075/22,3300.41
Department of Health,Leicestershire Partnership NHS Trust,23/01/23,Gas,"Farm Lodge (P34, LPT)",TOTAL GAS & POWER LTD,289304075/22,497.02
Department of Health,Leicestershire Partnership NHS Trust,23/01/23,Gas,"Feilding Palmer Hospital (Lutterworth) (P131, LPT)",TOTAL GAS & POWER LTD,289304075/22,4426.36
Department of Health,Leicestershire Partnership NHS Trust,23/01/23,Gas,"Frith Cottages 3 & 4 (P36, LPT)",TOTAL GAS & POWER LTD,289304075/22,553.40
Department of Health,Leicestershire Partnership NHS Trust,23/01/23,Gas,HIS,TOTAL GAS & POWER LTD,289304075/22,595.40
Department of Health,Leicestershire Partnership NHS Trust,23/01/23,Gas,"Hawthorne Centre - Coalville (P14, LPT)",TOTAL GAS & POWER LTD,289304075/22,1305.40
Department of Health,Leicestershire Partnership NHS Trust,23/01/23,Gas,"Hinckley and Bosworth Community Hospital (Sunnyside) (P133, LPT)",TOTAL GAS & POWER LTD,289304075/22,16117.41
Department of Health,Leicestershire Partnership NHS Trust,23/01/23,Gas,"Hynca Lodge (P33, LPT)",TOTAL GAS & POWER LTD,289304075/22,1309.21
Department of Health,Leicestershire Partnership NHS Trust,23/01/23,Gas,"LGH - Gwendolen House (P4, LPT)",TOTAL GAS & POWER LTD,289304075/22,5462.05
Department of Health,Leicestershire Partnership NHS Trust,23/01/23,Gas,"Loughborough Hospital (P136, LPT)",TOTAL GAS & POWER LTD,289304075/22,46237.50
Department of Health,Leicestershire Partnership NHS Trust,23/01/23,Gas,Mawson House (LPT),TOTAL GAS & POWER LTD,289304075/22,1785.19
Department of Health,Leicestershire Partnership NHS Trust,23/01/23,Gas,"Mett Centre (P49, LPT)",TOTAL GAS & POWER LTD,289304075/22,784.60
Department of Health,Leicestershire Partnership NHS Trust,23/01/23,Gas,"Narborough Health Centre (P117, LPT)",TOTAL GAS & POWER LTD,289304075/22,1455.46
Department of Health,Leicestershire Partnership NHS Trust,23/01/23,Gas,"Neville Centre - LGH (was DSC) (P147, LPT)",TOTAL GAS & POWER LTD,289304075/22,2831.02
Department of Health,Leicestershire Partnership NHS Trust,23/01/23,Gas,"OSL House (P54, LPT)",TOTAL GAS & POWER LTD,289304075/22,2084.96
Department of Health,Leicestershire Partnership NHS Trust,23/01/23,Gas,"Orchard Resource Centre (P15, LPT)",TOTAL GAS & POWER LTD,289304075/22,1779.96
Department of Health,Leicestershire Partnership NHS Trust,23/01/23,Gas,"Rutland Memorial Hospital (P134, LPT)",TOTAL GAS & POWER LTD,289304075/22,120.65
Department of Health,Leicestershire Partnership NHS Trust,23/01/23,Gas,"Shepshed Health Centre (P123, LPT)",TOTAL GAS & POWER LTD,289304075/22,1761.36
Department of Health,Leicestershire Partnership NHS Trust,23/01/23,Gas,"Springfield Road Health Centre (P92, LPT)",TOTAL GAS & POWER LTD,289304075/22,1658.64
Department of Health,Leicestershire Partnership NHS Trust,23/01/23,Gas,"Stewart House (P61, LPT)",TOTAL GAS & POWER LTD,289304075/22,8088.14
Department of Health,Leicestershire Partnership NHS Trust,23/01/23,Gas,"Swithland House - London Road 352 (P44, LPT)",TOTAL GAS & POWER LTD,289304075/22,2680.12
Department of Health,Leicestershire Partnership NHS Trust,23/01/23,Gas,"The Agnes Unit (AKA Assessment and Treatment Centre) (P85, LPT)",TOTAL GAS & POWER LTD,289304075/22,10581.58
Department of Health,Leicestershire Partnership NHS Trust,23/01/23,Gas,The Beacon,TOTAL GAS & POWER LTD,289304075/22,4335.55
Department of Health,Leicestershire Partnership NHS Trust,23/01/23,Gas,"The Cedars (P19, LPT)",TOTAL GAS & POWER LTD,289304075/22,777.37
Department of Health,Leicestershire Partnership NHS Trust,23/01/23,Gas,"The Grange 1 (P4, LPT)",TOTAL GAS & POWER LTD,289304075/22,787.07
Department of Health,Leicestershire Partnership NHS Trust,23/01/23,Gas,"The Grange 2 (P41, LPT)",TOTAL GAS & POWER LTD,289304075/22,580.06
Department of Health,Leicestershire Partnership NHS Trust,23/01/23,Gas,"The Willows - Cordelia Close (P22, LPT)",TOTAL GAS & POWER LTD,289304075/22,8045.74
Department of Health,Leicestershire Partnership NHS Trust,23/01/23,Gas,"Valentine Centre (P3, LPT)",TOTAL GAS & POWER LTD,289304075/22,4220.44
Department of Health,Leicestershire Partnership NHS Trust,23/01/23,Gas,"Westcotes Group -Westcotes House (P78, LPT)",TOTAL GAS & POWER LTD,289304075/22,3225.74
Department of Health,Leicestershire Partnership NHS Trust,23/01/23,Gas,"Winstanley Drive Health Centre (P8, LPT)",TOTAL GAS & POWER LTD,289304075/22,1542.98
Department of Health,Leicestershire Partnership NHS Trust,23/01/23,Photocopying,Estates & Facilities Central,LEXMARK INTERNATIONAL LTD,900650304815,40555.05
Department of Health,Leicestershire Partnership NHS Trust,23/01/23,Drugs,Adult City Drugs,POLAR SPEED THERMOLOGISTICS,0001069791,11572.99
Department of Health,Leicestershire Partnership NHS Trust,23/01/23,Drugs,Adult County Drugs,POLAR SPEED THERMOLOGISTICS,0001069791,17359.48
Department of Health,Leicestershire Partnership NHS Trust,23/01/23,Drugs,Adult City Drugs,POLAR SPEED THERMOLOGISTICS,0001078675,12380.86
Department of Health,Leicestershire Partnership NHS Trust,23/01/23,Drugs,Adult County Drugs,POLAR SPEED THERMOLOGISTICS,0001078675,18571.29
Department of Health,Leicestershire Partnership NHS Trust,23/01/23,Crs_NHS_LT1y -Resus Inventory Supplied.,Balance Sheet Collection,SUPPLY CHAIN CO LTD,1123236867,28492.63
Department of Health,Leicestershire Partnership NHS Trust,24/01/23,GP IT Expenditure,Area Team,DELL COMPUTERS,7402880850,35100.00
Department of Health,Leicestershire Partnership NHS Trust,25/01/23,GP IT Expenditure,Area Team,SOFTCAT PLC,INVUK717320,215814.96
Department of Health,Leicestershire Partnership NHS Trust,26/01/23,Other Non-Medical Supplies & Services,"Inpatients, Crisis & Liasion Management",BLABY DISTRICT COUNCIL,H0012205,65000.00
Department of Health,Leicestershire Partnership NHS Trust,26/01/23,External Consultancy Fees,FM Transformation,TURNER & TOWNSEND COST MAN,PRIV00002817,35949.66
Department of Health,Leicestershire Partnership NHS Trust,27/01/23,NURSE - BAND 2 - AGENCY,Beechwood Ward,HCL NURSING,HNSI0001245,9661.64
Department of Health,Leicestershire Partnership NHS Trust,27/01/23,NURSE - BAND 5 - AGENCY,Beechwood Ward,HCL NURSING,HNSI0001245,4016.58
Department of Health,Leicestershire Partnership NHS Trust,27/01/23,NURSE - BAND 2 - AGENCY,CHS Surge Ward,HCL NURSING,HNSI0001245,9570.56
Department of Health,Leicestershire Partnership NHS Trust,27/01/23,NURSE - BAND 5 - AGENCY,CHS Surge Ward,HCL NURSING,HNSI0001245,10416.31
Department of Health,Leicestershire Partnership NHS Trust,27/01/23,NURSE - BAND 5 - AGENCY,City Planned Care - East,HCL NURSING,HNSI0001245,8658.93
Department of Health,Leicestershire Partnership NHS Trust,27/01/23,NURSE - BAND 5 - AGENCY,City Planned Care - West,HCL NURSING,HNSI0001245,17120.58
Department of Health,Leicestershire Partnership NHS Trust,27/01/23,NURSE - BAND 2 - AGENCY,Clarendon Ward,HCL NURSING,HNSI0001245,9597.37
Department of Health,Leicestershire Partnership NHS Trust,27/01/23,NURSE - BAND 2 - AGENCY,Coalville Snibston Ward,HCL NURSING,HNSI0001245,3796.32
Department of Health,Leicestershire Partnership NHS Trust,27/01/23,NURSE - BAND 5 - AGENCY,Coalville Snibston Ward,HCL NURSING,HNSI0001245,4199.03
Department of Health,Leicestershire Partnership NHS Trust,27/01/23,NURSE - BAND 2 - AGENCY,Coalville Ward 2,HCL NURSING,HNSI0001245,6358.94
Department of Health,Leicestershire Partnership NHS Trust,27/01/23,NURSE - BAND 5 - AGENCY,Coalville Ward 2,HCL NURSING,HNSI0001245,2073.40
Department of Health,Leicestershire Partnership NHS Trust,27/01/23,NURSE - BAND 2 - AGENCY,Dalgliesh Ward,HCL NURSING,HNSI0001245,2603.22
Department of Health,Leicestershire Partnership NHS Trust,27/01/23,NURSE - BAND 5 - AGENCY,Dalgliesh Ward,HCL NURSING,HNSI0001245,5589.11
Department of Health,Leicestershire Partnership NHS Trust,27/01/23,NURSE - BAND 5 - AGENCY,"East Planned Care - Oadby,Wigston & Harborough",HCL NURSING,HNSI0001245,1381.65
Department of Health,Leicestershire Partnership NHS Trust,27/01/23,NURSE - BAND 2 - AGENCY,H&B Comm Hosp East Ward,HCL NURSING,HNSI0001245,13088.91
Department of Health,Leicestershire Partnership NHS Trust,27/01/23,NURSE - BAND 5 - AGENCY,H&B Comm Hosp East Ward,HCL NURSING,HNSI0001245,16948.04
Department of Health,Leicestershire Partnership NHS Trust,27/01/23,NURSE - BAND 2 - AGENCY,H&B Comm Hosp North Ward,HCL NURSING,HNSI0001245,5485.99
Department of Health,Leicestershire Partnership NHS Trust,27/01/23,NURSE - BAND 5 - AGENCY,H&B Comm Hosp North Ward,HCL NURSING,HNSI0001245,3095.91
Department of Health,Leicestershire Partnership NHS Trust,27/01/23,NURSE - BAND 2 - AGENCY,Lough Swithland Ward,HCL NURSING,HNSI0001245,4827.26
Department of Health,Leicestershire Partnership NHS Trust,27/01/23,NURSE - BAND 5 - AGENCY,Lough Swithland Ward,HCL NURSING,HNSI0001245,4021.70
Department of Health,Leicestershire Partnership NHS Trust,27/01/23,NURSE - BAND 2 - AGENCY,Rutland Ward Nursing,HCL NURSING,HNSI0001245,5215.15
Department of Health,Leicestershire Partnership NHS Trust,27/01/23,NURSE - BAND 5 - AGENCY,Rutland Ward Nursing,HCL NURSING,HNSI0001245,2572.87
Department of Health,Leicestershire Partnership NHS Trust,27/01/23,NURSE - BAND 2 - AGENCY,St Lukes Stroke Ward,HCL NURSING,HNSI0001245,4079.50
Department of Health,Leicestershire Partnership NHS Trust,27/01/23,NURSE - BAND 5 - AGENCY,St Lukes Stroke Ward,HCL NURSING,HNSI0001245,1047.20
Department of Health,Leicestershire Partnership NHS Trust,27/01/23,NURSE - BAND 2 - AGENCY,St Lukes Ward 3,HCL NURSING,HNSI0001245,2344.82
Department of Health,Leicestershire Partnership NHS Trust,27/01/23,NURSE - BAND 5 - AGENCY,St Lukes Ward 3,HCL NURSING,HNSI0001245,467.53
Department of Health,Leicestershire Partnership NHS Trust,27/01/23,Contract : Accomodation,Crisis House and Cafe,TURNING POINT,SI-TPS-00043544,102807.16
Department of Health,Leicestershire Partnership NHS Trust,27/01/23,Contract : Accomodation,Crisis House and Cafe,TURNING POINT,SI-TPS-00043548,102807.16
Department of Health,Leicestershire Partnership NHS Trust,27/01/23,Contract : Accomodation,Crisis House and Cafe,TURNING POINT,SI-TPS-00043547,102807.16
Department of Health,Leicestershire Partnership NHS Trust,27/01/23,Contract : Accomodation,Crisis House and Cafe,TURNING POINT,SI-TPS-00043542,102807.16
Department of Health,Leicestershire Partnership NHS Trust,27/01/23,Contract : Accomodation,Crisis House and Cafe,TURNING POINT,SI-TPS-00043545,102807.16
Department of Health,Leicestershire Partnership NHS Trust,27/01/23,Contract : Accomodation,Crisis House and Cafe,TURNING POINT,SI-TPS-00043550,102807.16
Department of Health,Leicestershire Partnership NHS Trust,27/01/23,Contract : Accomodation,Crisis House and Cafe,TURNING POINT,SI-TPS-00043543,102807.16
Department of Health,Leicestershire Partnership NHS Trust,27/01/23,Contract : Accomodation,Crisis House and Cafe,TURNING POINT,SI-TPS-00043549,102807.16
Department of Health,Leicestershire Partnership NHS Trust,27/01/23,Contract : Accomodation,Crisis House and Cafe,TURNING POINT,SI-TPS-00043546,102807.16
Department of Health,Leicestershire Partnership NHS Trust,30/01/23,External Consultancy Fees,Facilities Team,BLOOM PROC SERV LTD,SIN039963,52977.06
Department of Health,Leicestershire Partnership NHS Trust,30/01/23,Crs_NHS_LT1y -Resus Inventory Supplied.,Balance Sheet Collection,SUPPLY CHAIN CO LTD,1123242815,30491.80
